Workbook

Sheet بيع الهلال
A1: =COLUMN() -> 1 | B1: =COLUMN() -> 2 | C1: =COLUMN() -> 3 | D1: =COLUMN() -> 4 | E1: =COLUMN() -> 5 | F1: =COLUMN() -> 6 | G1: =COLUMN() -> 7 | H1: =COLUMN() -> 8 | I1: =COLUMN() -> 9 | J1: =COLUMN() -> 10 | K1: =COLUMN() -> 11 | L1: =COLUMN() -> 12 | M1: عمرو | N1: عمرو | O1: عمرو | P1: عمرو | Q1: عمرو | R1: هشام | S1: عمرو | T1: هشام | U1: عمرو | V1: عمرو | W1: هشام | X1: عمرو | Y1: عمرو | Z1: عمرو | AA1: عمرو | AB1: عمرو | AC1: هشام | AD1: هشام | AE1: عمرو | AF1: عمرو | AG1: عمرو | AH1: عمرو | AI1: عمرو | AJ1: احمد سمير | AK1: احمد سمير | AL1: احمد سمير | AM1: احمد سمير | AN1: احمد سمير | AO1: عمرو | AP1: عمرو | AQ1: عمرو | AR1: احمد سمير | AS1: احمد سمير | AT1: احمد سمير | AU1: احمد سمير | AV1: احمد سمير | AW1: احمد سمير
A2: م | B2: كود الصنف | C2: Barcode | D2: الإسم الجديد للمنتج على التغليف و السيستم | E2: Brand | F2: العائلة | G2: الوحدة | H2: قائمة الاساسيه غير شامله الضريبه | I2: قائمة الاساسيه شامله الضريبه | J2: قائمة الجمله شامله الضريبه | K2: قائمه الاسعار بعد الزياده شامله الضريبه | L2: قائمة التجزئه شامله الضريبه | M2: بيع يوم 3/4/2022 | N2: بيع يوم 3/4/2022 | O2: بيع يوم 4/4/2022 | P2: بيع يوم 4/4/2022 | Q2: بيع يوم 4/4/2022 | R2: بيع يوم 5/4/2022 | S2: بيع يوم 5/4/2022 | T2: بيع يوم 6/4/2022 | U2: بيع يوم 6/4/2022 | V2: بيع يوم 7/4/2022 | W2: بيع يوم 7/4/2022 | X2: بيع يوم 9/4/2022 | Y2: بيع يوم 10/4/2022 | Z2: بيع يوم 10/4/2022 | AA2: بيع يوم 10/4/2022 | AB2: بيع يوم 10/4/2022 | AC2: بيع يوم 11/4/2022 | AD2: بيع يوم 11/4/2022 | AE2: بيع يوم 11/4/2022 | AF2: بيع يوم 11/4/2022 | AG2: بيع يوم 11/4/2022 | AH2: بيع يوم 11/4/2022 | AI2: بيع يوم 11/4/2022 | AJ2: بيع يوم 11/4/2022 | AK2: بيع يوم 11/4/2022 | AL2: بيع يوم 11/4/2022 | AM2: بيع يوم 11/4/2022 | AN2: بيع يوم 11/4/2022 | AO2: بيع يوم 12/4/2022 | AP2: بيع يوم 12/4/2022 | AQ2: بيع يوم 12/4/2022 | AR2: بيع يوم 12/4/2022 | AS2: بيع يوم 12/4/2022 | AT2: بيع يوم 12/4/2022 | AU2: بيع يوم 12/4/2022 | AV2: بيع يوم 12/4/2022 | AW2: بيع يوم 12/4/2022
A3: 1 | B3: 410110065 | C3: 6222016100657 | D3: فرشة ايديال ناعمة | E3: Helal | F3: فرش و مكانس | G3: قطعة | H3: 10.62698763 | I3: =H3+(H3*14%) -> 12.1147659 | J3: =I3-(I3*12%) -> 10.66099399 | K3: =VLOOKUP(B3,'[1]مخزن الهلال'!$B$81:$D$153,3,0) -> 13.28 | L3: =I3-(I3*7%) -> 11.26673228 | P3: 12 | U3: 12 | W3: 12 | X3: 48 | Y3: 12 | AB3: 12 | AT3: 12
A4: =A3+1 -> 2 | B4: 410110107 | C4: 6222016101074 | D4: فرشة روما لوكس | E4: Helal | F4: فرش و مكانس | G4: قطعة | H4: 11.30403328 | I4: 12.88659794 | J4: 11.34020619 | K4: =VLOOKUP(B4,'[1]مخزن الهلال'!$B$81:$D$153,3,0) -> 14.61 | L4: 11.98453608 | M4: 12 | N4: 12 | O4: 12 | T4: 12 | U4: 12 | V4: 24 | X4: 24 | Y4: 12 | AA4: 12 | AB4: 12 | AC4: =10*12 -> 120 | AG4: 12 | AI4: 12 | AJ4: 12 | AK4: 12 | AL4: 12 | AN4: 12 | AU4: 24 | AV4: 12
A5: 3 | B5: 410110104 | C5: 6222016101043 | D5: فرشة لوكس الهلال | E5: Helal | F5: فرش و مكانس | G5: قطعة | H5: 14 | I5: 15.96 | J5: 14.0448 | K5: =VLOOKUP(B5,'[1]مخزن الهلال'!$B$81:$D$153,3,0) -> 23.47 | L5: 14.8428
A6: 4 | B6: 410110066 | C6: 6222016100664 | D6: فرشة ايديال خشنة | E6: Helal | F6: فرش و مكانس | G6: قطعة | H6: 11.58663411 | I6: 13.20876289 | J6: 11.62371134 | K6: =VLOOKUP(B6,'[1]مخزن الهلال'!$B$81:$D$153,3,0) -> 14.53 | L6: 12.28414948 | W6: 12 | AM6: 6 | AT6: 12
A7: 5 | B7: 410110058 | C7: 6222016100589 | D7: فرشة ميكس الهلال | E7: Helal | F7: فرش و مكانس | G7: قطعة | H7: 15.73144631 | I7: 17.9338488 | J7: 15.78178694 | K7: =VLOOKUP(B7,'[1]مخزن الهلال'!$B$81:$D$153,3,0) -> 19.73 | L7: 16.67847938 | AA7: 12
A8: 6 | B8: 410110063 | C8: 6222016100633 | D8: فرشة هلين اسود | E8: Helal | F8: فرش و مكانس | G8: قطعة | H8: 15.07204437 | I8: 17.18213058 | J8: 15.12027491 | K8: =VLOOKUP(B8,'[1]مخزن الهلال'!$B$81:$D$153,3,0) -> 23.16 | L8: 15.97938144
A9: 7 | B9: 410110062 | C9: 6222016100626 | D9: فرشة سوبر هلين ناعم | E9: Helal | F9: فرش و مكانس | G9: قطعة | H9: 15.73144631 | I9: 17.9338488 | J9: 15.78178694 | K9: =VLOOKUP(B9,'[1]مخزن الهلال'!$B$81:$D$153,3,0) -> 24.15 | L9: 16.67847938 | M9: 12 | O9: 12 | P9: 12 | U9: 12 | AI9: 3
A10: 8 | B10: 410110064 | C10: 6222016100640 | D10: فرشة سوبر هلين خشن | E10: Helal | F10: فرش و مكانس | G10: قطعة | H10: 15.73144631 | I10: 17.9338488 | J10: 15.78178694 | K10: =VLOOKUP(B10,'[1]مخزن الهلال'!$B$81:$D$153,3,0) -> 23.74 | L10: 16.67847938 | M10: 12 | P10: 12 | U10: 12 | X10: 12 | AI10: 3 | AN10: 6
A11: 9 | B11: 410118004 | C11: 6222016180048 | D11: فرشة مدريد ناعم بيد معدن مدهون | E11: Helal | F11: فرش و مكانس | G11: قطعة | H11: 25.43859649 | I11: 29 | J11: 25.52 | K11: =VLOOKUP(B11,'[1]مخزن الهلال'!$B$81:$D$153,3,0) -> 31.9 | L11: 26.97
A12: 10 | B12: 410114000 | C12: 6222016140004 | D12: فرشة دهب باليد المعدن | E12: Helal | F12: فرش و مكانس | G12: قطعة | H12: 51.75438596 | I12: 59 | J12: 51.92 | K12: =VLOOKUP(B12,'[1]مخزن الهلال'!$B$81:$D$153,3,0) -> 64.9 | L12: 54.87
A13: 11 | B13: 410114001 | C13: 6222016140011 | D13: فرشة فضة ناعمة باليد المعدن | E13: Helal | F13: فرش و مكانس | G13: قطعة | H13: 51.75438596 | I13: 59 | J13: 51.92 | K13: =VLOOKUP(B13,'[1]مخزن الهلال'!$B$81:$D$153,3,0) -> 64.9 | L13: 54.87
A14: 12 | B14: 410210133 | C14: 6222016101333 | D14: فرشة طرق وملاعب 30 سم جلبة بلاستيك | E14: Helal | F14: فرش و مكانس | G14: قطعة | H14: 36.93079054 | I14: 42.10110122 | J14: 37.04896907 | K14: =VLOOKUP(B14,'[1]مخزن الهلال'!$B$81:$D$153,3,0) -> 46.31 | L14: 39.15402413
A15: 13 | B15: 410210122 | C15: 6222016101227 | D15: فرشة طرق وملاعب 30 سم جلبة حديد | E15: Helal | F15: فرش و مكانس | G15: قطعة | H15: 45.20328762 | I15: 51.53174789 | J15: 45.34793814 | K15: =VLOOKUP(B15,'[1]مخزن الهلال'!$B$81:$D$153,3,0) -> 56.68 | L15: 47.92452554
A16: 14 | B16: 410210123 | C16: 6222016101234 | D16: فرشة طرق وملاعب 40 سم جلبة حديد | E16: Helal | F16: فرش و مكانس | G16: قطعة | H16: 55.05149844 | I16: 62.75870822 | J16: 55.22766323 | K16: =VLOOKUP(B16,'[1]مخزن الهلال'!$B$81:$D$153,3,0) -> 63.25 | L16: 58.36559864
A17: 15 | B17: 410210132 | C17: 6222016101326 | D17: فرشة طرق وملاعب خشب 60 سم بدون جلبة | E17: Helal | F17: فرش و مكانس | G17: قطعة | H17: 55.05149844 | I17: 62.75870822 | J17: 55.22766323 | K17: =VLOOKUP(B17,'[1]مخزن الهلال'!$B$81:$D$153,3,0) -> 69.03 | L17: 58.36559864
A18: 16 | B18: 410210124 | C18: 6222016101241 | D18: فرشة طرق وملاعب 60 سم جلبة حديد | E18: Helal | F18: فرش و مكانس | G18: قطعة | H18: 78.68720438 | I18: 89.703413 | J18: 78.93900344 | K18: =VLOOKUP(B18,'[1]مخزن الهلال'!$B$81:$D$153,3,0) -> 98.67 | L18: 83.42417409
A19: 17 | B19: 410310160 | C19: 6222016101609 | D19: فرشة أطباق الهلال | E19: Helal | F19: فرشة أطباق | G19: قطعة | H19: 7.01754386 | I19: 8 | J19: 7.04 | K19: =VLOOKUP(B19,'[1]مخزن الهلال'!$B$81:$D$153,3,0) -> 8.8 | L19: 7.44 | AA19: 6
A20: 18 | B20: 410310111 | C20: 6222016101111 | D20: فرشة استحمام الهلال | E20: Helal | F20: فرشة استحمام | G20: قطعة | H20: 9.749728703 | I20: 11.11469072 | J20: 9.780927835 | K20: =VLOOKUP(B20,'[1]مخزن الهلال'!$B$81:$D$153,3,0) -> 12.23 | L20: 10.33666237 | N20: 12 | S20: 24 | T20: 6 | U20: 24 | AS20: 6
A21: 19 | B21: 410310119 | C21: 6222016101197 | D21: فرشة أحواض الهلال | E21: Helal | F21: فرشة أحواض | G21: قطعة | H21: 10.34062135 | I21: 11.78830834 | J21: 10.37371134 | K21: =VLOOKUP(B21,'[1]مخزن الهلال'!$B$81:$D$153,3,0) -> 12.97 | L21: 10.96312676 | P21: 12 | S21: 12 | U21: 12 | AB21: 6 | AH21: 12
A22: 20 | B22: 410114002 | C22: 6222016140028 | D22: فرشة سيارات الهلال | E22: Helal | F22: فرش متنوعة | G22: قطعة | H22: 17.72677946 | I22: 20.20852858 | J22: 17.78350515 | K22: =VLOOKUP(B22,'[1]مخزن الهلال'!$B$81:$D$153,3,0) -> 22.23 | L22: 18.79393158
A23: 21 | B23: 410110000 | C23: 6222016100008 | D23: فرشة الهلال متعددة الاغراض ( سيارات ) | E23: Helal | F23: فرش متنوعة | G23: قطعة | H23: 20.18883216 | I23: 23.01526867 | J23: 20.25343643 | K23: =VLOOKUP(B23,'[1]مخزن الهلال'!$B$81:$D$153,3,0) -> 25.32 | L23: 21.40419986 | AR23: 3
A24: 22 | B24: 411116979 | C24: 6222016169791 | D24: سلاكة هلال جامبو ييد عكاز بلاستيك | E24: Helal | F24: سلاكة | G24: قطعة | H24: =19.95/1.14 -> 17.5 | I24: 19.95 | J24: 17.556 | K24: =VLOOKUP(B24,'[1]مخزن الهلال'!$B$81:$D$153,3,0) -> 21.95 | L24: 18.5535
A25: 23 | B25: 410410447 | C25: 6222016104471 | D25: مكنسة الهلال السحرية | E25: Helal | F25: فرش و مكانس | G25: قطعة | H25: 88.14148676 | I25: 100.4812949 | J25: 88.42353952 | K25: =VLOOKUP(B25,'[1]مخزن الهلال'!$B$81:$D$153,3,0) -> 110.53 | L25: 93.44760426
A26: 24 | B26: 410510071 | C26: 6222016100718 | D26: جاروف هلال بالكاوتشة | E26: Helal | F26: جاروف | G26: قطعة | H26: 8.771929825 | I26: 10 | J26: 8.8 | K26: =VLOOKUP(B26,'[1]مخزن الهلال'!$B$81:$D$153,3,0) -> 11 | L26: 9.3
A27: 25 | B27: 410510099 | C27: 6222016100992 | D27: فرشة بالجاروف كف الهلال | E27: Helal | F27: فرشة بالجاروف | G27: قطعة | H27: =13/1.14 -> 11.40350877 | I27: 13 | J27: 11.44 | K27: =VLOOKUP(B27,'[1]مخزن الهلال'!$B$81:$D$153,3,0) -> 14.3 | L27: 12.09
A28: 26 | B28: 410513513 | C28: 6222016135130 | D28: فرشة بالجاروف دولفين الهلال | E28: Helal | F28: فرشة بالجاروف | G28: قطعة | H28: 16.66666667 | I28: 19 | J28: 16.72 | K28: =VLOOKUP(B28,'[1]مخزن الهلال'!$B$81:$D$153,3,0) -> 20.9 | L28: 17.67
A29: 27 | B29: 410510068 | C29: 6222016100688 | D29: فرشة بالجاروف توأم الهلال | E29: Helal | F29: فرشة بالجاروف | G29: قطعة | H29: =16/1.14 -> 14.03508772 | I29: 16 | J29: 14.08 | K29: =VLOOKUP(B29,'[1]مخزن الهلال'!$B$81:$D$153,3,0) -> 17.6 | L29: 14.88 | O29: 12 | S29: 12 | T29: 6 | V29: 24 | X29: 12 | AA29: 12 | AB29: 12 | AC29: =2*12 -> 24 | AH29: 12 | AI29: 3 | AV29: 6
A30: 28 | B30: 410510072 | C30: 6222016100725 | D30: جاروف بلدوزر كبير بالكاوتشة باليد المعدن | E30: Helal | F30: فرشة بالجاروف | G30: قطعة | H30: 23.68421053 | I30: 27 | J30: 23.76 | K30: =VLOOKUP(B30,'[1]مخزن الهلال'!$B$81:$D$153,3,0) -> 29.7 | L30: 25.11
A31: 29 | B31: 410512903 | C31: 6222016129030 | D31: فرشة بالجاروف باليد الهلال | E31: Helal | F31: فرشة بالجاروف | G31: قطعة | H31: 42.98245614 | I31: 49 | J31: 43.12 | K31: =VLOOKUP(B31,'[1]مخزن الهلال'!$B$81:$D$153,3,0) -> 51.25 | L31: 45.57 | M31: 12 | N31: 12 | U31: 24 | V31: 24 | Z31: 15 | AA31: 3 | AB31: 6 | AO31: 18
A32: 30 | B32: 410610375 | C32: 6222016103757 | D32: زعافة كورة الهلال بالإريال مدهون 21 مللي | E32: Helal | F32: زعافة | G32: قطعة | H32: =26/1.14 -> 22.80701754 | I32: 26 | J32: 22.88 | K32: =VLOOKUP(B32,'[1]مخزن الهلال'!$B$81:$D$153,3,0) -> 27.64 | L32: 24.18 | N32: 12 | O32: 12 | Q32: 12 | R32: =8*12 -> 96 | U32: 24 | W32: 6
A33: 31 | B33: 410610085 | C33: 6222016100855 | D33: زعافة كورة الهلال بالإريال جامبو | E33: Helal | F33: زعافة | G33: قطعة | H33: 26.31578947 | I33: 30 | J33: 26.4 | K33: =VLOOKUP(B33,'[1]مخزن الهلال'!$B$81:$D$153,3,0) -> 33 | L33: 27.9
A34: 32 | B34: 410710086 | C34: 6222016100862 | D34: لمامة الهلال 3 ريشة | E34: Helal | F34: لمامة | G34: قطعة | H34: 13.15789474 | I34: 15 | J34: 13.2 | K34: =VLOOKUP(B34,'[1]مخزن الهلال'!$B$81:$D$153,3,0) -> 16.5 | L34: 13.95 | S34: 24 | X34: 24 | Z34: 12 | AD34: 3 | AQ34: 84
A35: 33 | B35: 410810108 | C35: 6222016101081 | D35: فرشة مكواة الهلال | E35: Helal | F35: فرشة مكواة | G35: قطعة | H35: =9/1.14 -> 7.894736842 | I35: 9 | J35: 7.92 | K35: =VLOOKUP(B35,'[1]مخزن الهلال'!$B$81:$D$153,3,0) -> 9.9 | L35: 8.37 | U35: 24 | V35: 24 | AB35: 12 | AI35: 6 | AP35: 12
A36: 34 | B36: 410810089 | C36: 6222016100893 | D36: فرشة سجاد الهلال | E36: Helal | F36: فرشة سجاد | G36: قطعة | H36: =9/1.14 -> 7.894736842 | I36: 9 | J36: 7.92 | K36: =VLOOKUP(B36,'[1]مخزن الهلال'!$B$81:$D$153,3,0) -> 9.9 | L36: 8.37 | N36: 18 | O36: 18 | S36: 18 | U36: 36 | V36: 18 | X36: 18 | AA36: 18 | AI36: 6
A37: 35 | B37: 410810033 | C37: 6222016100336 | D37: فرشة مكواة ننيجا الهلال | E37: Helal | F37: فرشة مكواة | G37: قطعة | H37: 10.52631579 | I37: 12 | J37: 10.56 | K37: =VLOOKUP(B37,'[1]مخزن الهلال'!$B$81:$D$153,3,0) -> 13.2 | L37: 11.16
A38: 36 | B38: 410810090 | C38: 6222016100909 | D38: فرشة بلاط باليد الهلال | E38: Helal | F38: فرشة بلاط | G38: قطعة | H38: 11.914 | I38: 13.58196 | J38: 11.9521248 | K38: =VLOOKUP(B38,'[1]مخزن الهلال'!$B$81:$D$153,3,0) -> 14.94 | L38: 12.6312228 | V38: 24 | W38: 6
A39: 37 | B39: 410812302 | C39: 6222016123021 | D39: فرشة بلاط باليد براندو الهلال | E39: Helal | F39: فرشة بلاط | G39: قطعة | H39: =16/1.14 -> 14.03508772 | I39: 16 | J39: 14.08 | K39: =VLOOKUP(B39,'[1]مخزن الهلال'!$B$81:$D$153,3,0) -> 17.6 | L39: 14.88
A40: 38 | B40: 410910088 | C40: 6222016100886 | D40: فرشة تواليت الهلال | E40: Helal | F40: فرش تواليت | G40: قطعة | H40: =8/1.14 -> 7.01754386 | I40: 8 | J40: 7.04 | K40: =VLOOKUP(B40,'[1]مخزن الهلال'!$B$81:$D$153,3,0) -> 8.8 | L40: 7.44
A41: 39 | B41: 410910177 | C41: 6222016101777 | D41: فرشة تواليت الهلال بالقاعدة بدون كاوتشة | E41: Helal | F41: فرش تواليت | G41: قطعة | H41: 16.66666667 | I41: 19 | J41: 16.72 | K41: =VLOOKUP(B41,'[1]مخزن الهلال'!$B$81:$D$153,3,0) -> 20.9 | L41: 17.67 | O41: 12 | AB41: 6
A42: 40 | B42: 410910141 | C42: 6222016101418 | D42: فرشة تواليت بامبو الهلال بالقاعدة | E42: Helal | F42: فرش تواليت | G42: قطعة | H42: 16.66666667 | I42: 19 | J42: 16.72 | K42: =VLOOKUP(B42,'[1]مخزن الهلال'!$B$81:$D$153,3,0) -> 20.9 | L42: 17.67 | U42: 12 | AA42: 12
A43: 41 | B43: 410912205 | C43: 6222016122055 | D43: فرشة هاي الهلال بالقاعدة | E43: Helal | F43: فرش تواليت | G43: قطعة | H43: 17.54385965 | I43: 20 | J43: 17.6 | K43: =VLOOKUP(B43,'[1]مخزن الهلال'!$B$81:$D$153,3,0) -> 22 | L43: 18.6
A44: 42 | B44: 411010074 | C44: 6222016100749 | D44: مساحة هلال صغيرة 40سم | E44: Helal | F44: مساحة | G44: قطعة | H44: 14.03508772 | I44: 16 | J44: 14.08 | K44: =VLOOKUP(B44,'[1]مخزن الهلال'!$B$81:$D$153,3,0) -> 17.6 | L44: 14.88 | U44: 12 | AB44: 6 | AH44: 12 | AN44: 6 | AV44: 3
A45: 43 | B45: 411010080 | C45: 6222016100800 | D45: مساحة هلال كبيرة 46سم | E45: Helal | F45: مساحة | G45: قطعة | H45: 16.66666667 | I45: 19 | J45: 16.72 | K45: =VLOOKUP(B45,'[1]مخزن الهلال'!$B$81:$D$153,3,0) -> 20.9 | L45: 17.67 | U45: 12 | AB45: 6 | AR45: 6
A46: 44 | B46: 411010242 | C46: 6222016102422 | D46: مساحة وفرشة ميكس الهلال 40سم | E46: Helal | F46: مساحة | G46: قطعة | H46: 21.92982456 | I46: 25 | J46: 22 | K46: =VLOOKUP(B46,'[1]مخزن الهلال'!$B$81:$D$153,3,0) -> 27.5 | L46: 23.25 | AB46: 6 | AI46: 5
A47: 45 | B47: 411010082 | C47: 6222016100824 | D47: مساحة زجاج الهلال 30 سم معدن | E47: Helal | F47: مساحة زجاج | G47: قطعة | H47: 9.454282379 | I47: 10.77788191 | J47: 9.484536082 | K47: =VLOOKUP(B47,'[1]مخزن الهلال'!$B$81:$D$153,3,0) -> 11.86 | L47: 10.02343018
A48: 46 | B48: 411010081 | C48: 6222016100817 | D48: مساحة زجاج الهلال بالإسفنجة | E48: Helal | F48: مساحة زجاج | G48: قطعة | H48: 12.01481719 | I48: 13.6968916 | J48: 12.0532646 | K48: =VLOOKUP(B48,'[1]مخزن الهلال'!$B$81:$D$153,3,0) -> 15.07 | L48: 12.73810918 | N48: 6 | O48: 6 | S48: 24 | T48: 6 | V48: 12 | X48: 18 | AH48: 18
A49: 47 | B49: 411310100 | C49: 6222016101005 | D49: مساحة باركيه الهلال العجيبة | E49: Helal | F49: مساحة | G49: قطعة | H49: 43.47 | I49: 49.5558 | J49: 43.609104 | K49: =VLOOKUP(B49,'[1]مخزن الهلال'!$B$81:$D$153,3,0) -> 54.51 | L49: 46.086894
A50: 48 | B50: 411210092 | C50: 6222016100923 | D50: جردل الهلال بيضاوي بالعصارة | E50: Helal | F50: جرادل | G50: قطعة | H50: 52.17819885 | I50: 59.48314669 | J50: 52.34516909 | K50: =VLOOKUP(B50,'[1]مخزن الهلال'!$B$81:$D$153,3,0) -> 65.43 | L50: 55.31932642
A51: 49 | B51: 411210091 | C51: 6222016100916 | D51: جردل إسبيدو بالعصارة | E51: Helal | F51: جرادل | G51: قطعة | H51: 143.0897608 | I51: 163.1223273 | J51: 143.547648 | K51: =VLOOKUP(B51,'[1]مخزن الهلال'!$B$81:$D$153,3,0) -> 179.43 | L51: 151.7037644 | M51: 2 | N51: 1 | P51: 2 | R51: 1 | S51: 6 | U51: 1
A52: 50 | B52: 411410144 | C52: 6222016101449 | D52: يد جردل سبيدو | E52: Helal | F52: جرادل | G52: قطعة | H52: 43.54973325 | I52: 49.64669591 | J52: 43.6890924 | K52: =VLOOKUP(B52,'[1]مخزن الهلال'!$B$81:$D$153,3,0) -> 54.61 | L52: 46.1714272
A53: 51 | B53: 411310096 | C53: 6222016100961 | D53: موب قطن الهلال | E53: Helal | F53: موب | G53: قطعة | H53: =9/1.14 -> 7.894736842 | I53: 9 | J53: 7.92 | K53: =VLOOKUP(B53,'[1]مخزن الهلال'!$B$81:$D$153,3,0) -> 9.9 | L53: 8.37 | N53: 12 | O53: 12 | S53: 12 | U53: 36 | V53: 36 | AA53: 12 | AB53: 12 | AW53: 12
A54: 52 | B54: 411316999 | C54: 6222016169999 | D54: موب قطن 100% بيد معدن 120 سم مدهون | E54: Helal | F54: موب | G54: قطعة | H54: 21.93 | I54: 25.0002 | J54: 22.000176 | K54: =VLOOKUP(B54,'[1]مخزن الهلال'!$B$81:$D$153,3,0) -> 27.5 | L54: 23.250186
A55: 53 | B55: 411316984 | C55: 6222016169845 | D55: موب قطن 100% | E55: Helal | F55: موب | G55: قطعة | H55: 13.15789474 | I55: 15 | J55: 13.2 | K55: =VLOOKUP(B55,'[1]مخزن الهلال'!$B$81:$D$153,3,0) -> 16.5 | L55: 13.95
A56: 54 | B56: 411310541 | C56: 6222016105416 | D56: غيار قطنة اسبيدو | E56: Helal | F56: موب | G56: قطعة | H56: 13.16 | I56: 15.0024 | J56: 13.202112 | K56: =VLOOKUP(B56,'[1]مخزن الهلال'!$B$81:$D$153,3,0) -> 16.5 | L56: 13.952232
A57: 55 | B57: 411410116 | C57: 6222016101166 | D57: يد زان الهلال 120 سم مغلف | E57: Helal | F57: أيادي | G57: قطعة | H57: 8.901272778 | I57: 10.14745097 | J57: 8.929756851 | K57: =VLOOKUP(B57,'[1]مخزن الهلال'!$B$81:$D$153,3,0) -> 11.16 | L57: 9.437129399
A58: 56 | B58: 411410167 | C58: 6222016101678 | D58: يد خشب لوكس الهلال مدهون ( يد غليظة 120سم) | E58: Helal | F58: أيادي | G58: قطعة | H58: 12.39822222 | I58: 14.13397333 | J58: 12.43789653 | K58: =VLOOKUP(B58,'[1]مخزن الهلال'!$B$81:$D$153,3,0) -> 15.55 | L58: 13.1445952
A59: 57 | B59: 420718107 | C59: 6222016181076 | D59: جردل توتينز الهلال | E59: Helal | F59: جرادل | G59: قطعة | H59: 51.75438596 | I59: 59 | J59: 51.92 | K59: =VLOOKUP(B59,'[1]مخزن الهلال'!$B$81:$D$153,3,0) -> 72.61 | L59: 54.87 | N59: 12 | O59: 6 | P59: 12 | V59: 24 | W59: 3 | Z59: 5 | AC59: 12 | AP59: 6
A60: 58 | B60: 410912202 | C60: 6222016122024 | D60: فرشة تواليت بالقاعدة باريس | E60: Helal | F60: فرش تواليت | G60: قطعة | H60: 13.15789474 | I60: 15 | J60: 13.2 | K60: =VLOOKUP(B60,'[1]مخزن الهلال'!$B$81:$D$153,3,0) -> 16.5 | L60: 13.95 | Q60: 12 | T60: 6 | U60: 18 | V60: 18 | X60: 18 | AB60: 6 | AD60: 7 | AF60: 18 | AP60: 18
A61: 59 | B61: 410310109 | C61: 6222016101098 | D61: فرشة ملابس الهلال | E61: Helal | F61: فرشة ملابس | G61: قطعة | H61: 10.52631579 | I61: 12 | J61: 10.56 | K61: =VLOOKUP(B61,'[1]مخزن الهلال'!$B$81:$D$153,3,0) -> 13.2 | L61: 11.16 | N61: 12 | Q61: 36 | X61: 36
A62: 60 | B62: 410610098 | C62: 6222016100985 | D62: زعافة كورة الهلال بالإريال مطبوع | E62: Helal | F62: زعافة | G62: قطعة | H62: 25.43859649 | I62: 29 | J62: 25.52 | K62: =VLOOKUP(B62,'[1]مخزن الهلال'!$B$81:$D$153,3,0) -> 31.9 | L62: 26.97 | S62: 24 | V62: 12 | AB62: 12 | AD62: 6 | AE62: 24 | AF62: 36 | AJ62: 3 | AQ62: 48
A63: 61 | B63: 411719238 | C63: 6222016192386 | D63: منشر غسيل هلال 3 دور | E63: Helal | F63: منشر | G63: قطعة | H63: 350 | I63: 399 | J63: 351.12 | K63: =VLOOKUP(B63,'[1]مخزن الهلال'!$B$81:$D$153,3,0) -> 438.9 | L63: 371.07 | M63: 2
A64: 62 | B64: 411416970 | C64: 6222016169708 | D64: يد هلال معدن 120 سم مدهون أحمر | E64: Helal | F64: أيادي | G64: قطعة | H64: 13.15789474 | I64: 15 | J64: 13.2 | K64: =VLOOKUP(B64,'[1]مخزن الهلال'!$B$81:$D$153,3,0) -> 16.5 | L64: 13.95
A65: =A64+1 -> 63 | B65: 420115017 | D65: زباله كوين 8 لتر | F65: جردل | G65: قطعة | I65: 56.03 | J65: 49.3064 | K65: =VLOOKUP(B65,'[1]مخزن الهلال'!$B$81:$D$153,3,0) -> 61.63 | L65: 52.1079
A66: =A65+1 -> 64 | B66: 411012503 | D66: مساحة ستايل 40سم | F66: مساحه | G66: قطعة | I66: 19.32 | J66: 17.0016 | K66: =VLOOKUP(B66,'[1]مخزن الهلال'!$B$81:$D$153,3,0) -> 21.26 | L66: 17.9676 | W66: 12
A67: 65 | B67: 410710087 | D67: لمامة 4 ريشة | F67: لمامه | G67: قطعة | I67: 16.28 | J67: =I67-(I67*12%) -> 14.3264 | K67: =VLOOKUP(B67,'[1]مخزن الهلال'!$B$81:$D$153,3,0) -> 17.91 | L67: =I67-(I67*7%) -> 15.1404 | P67: 24 | S67: 24 | X67: 24 | AD67: 3 | AW67: 1
B68: اجمالي البيع
B69: اجمالي الفواتير | M69: =M63*I63+M51*I51+M31*I31+M10*I10+M9*I9+M4*I4 -> 2297.296201 | N69: =N61*I61+N59*I59+N53*I53+N51*I51+N48*I48+N36*I36+N31*I31+N20*I20+N4*I4+N32*I32 -> 2555.319141 | O69: =+O59*I59+O53*I53+O48*I48+O41*I41+O36*I36+O32*I32+O29*I29+O9*I9+O4*I4 -> 1808.02671 | P69: =+P67*I67+P59*I59+P51*I51+P21*I21+P10*I10+P9*I9+P3*I3 -> 2142.213917 | Q69: =+Q61*I61+Q60*I60+Q32*I32 -> 924 | R69: =R51*I51+R32*I32 -> 2659.122327 | S69: =S67*K67+S62*K62+S53*K53+S51*K51+S48*K48+S36*K36+S34*K34+S29*K29+S21*K21+S20*K20 -> 3987.06 | T69: =T60*K60+T48*K48+T29*K29+T20*K20+T4*K4 -> 543.72 | U69: =U60*K60+U53*K53+U51*K51+U45*K45+U44*K44+U42*K42+U36*K36+U35*K35+U32*K32+U31*K31+U21*K21+U20*K20+U10*K10+U9*K9+U4*K4+U3*K3 -> 5391.51 | V69: =V62*K62+V60*K60+V59*K59+V53*K53+V48*K48+V38*K38+V36*K36+V35*K35+V31*K31+V29*K29+V4*K4 -> 5737.08 | W69: =W66*K66+W59*K59+W38*K38+W32*K32+W6*K6+W3*K3 -> 1062.15 | X69: =X67*K67+X61*K61+X60*K60+X48*K48+X36*K36+X34*K34+X29*K29+X10*K10+X4*K4+X3*K3 -> 3531.66 | Y69: =Y4*K4+Y3*K3 -> 334.68 | Z69: =Z59*K59+Z34*K34+Z31*K31 -> 1329.8 | AA69: =AA59*L59+AA34*L34+AA31*L31 -> 136.71 | AB69: =AB62*K62+AB60*K60+AB53*K53+AB46*K46+AB45*K45+AB35*K35+AB31*K31+AB29*K29+AB21*K21+AB4*K4+AB3*K3 -> 1941 | AC69: =AC59*K59+AC29*K29+AC4*K4 -> 3046.92 | AD69: =AD67*K67+AD62*K62+AD60*K60+AD34*K34 -> 410.13 | AE69: =AE62*K62 -> 765.6 | AF69: =AF62*K62+AF60*K60 -> 1445.4 | AG69: =AG4*K4 -> 175.32 | AH69: =AH48*K48+AH44*K44+AH21*K21+AH29*K29 -> 849.3 | AI69: =AI46*K46+AI36*K36+AI35*K35+AI29*K29+AI10*K10+AI9*K9+AI4*K4 -> 628.09 | AJ69: =AJ62*K62+AJ4*K4 -> 271.02 | AK69: =AK4*K4 -> 175.32 | AL69: =AL4*K4 -> 175.32 | AM69: =AM6*K6 -> 87.18 | AN69: =AN44*K44+AN10*K10+AN4*K4 -> 423.36 | AO69: =AO31*K31 -> 922.5 | AP69: =AP60*K60+AP59*K59+AP35*K35 -> 851.46 | AQ69: =AQ62*K62+AQ34*K34 -> 2917.2 | AR69: =AR45*K45+AR23*K23 -> 201.36 | AS69: =AS20*K20 -> 73.38 | AT69: =AT6*K6+AT3*K3 -> 333.72 | AU69: =AU4*K4 -> 350.64 | AV69: =AV29*K29+AV4*K4+AV44*K44 -> 333.72 | AW69: =AW67*K67+AW53*K53 -> 136.71 | AX69: =AX67*$K$67+AX66*$K$66+AX65*$K$65+AX64*$K$64+AX63*$K$63+AX62*$K$62+AX61*$K$61+AX60*$K$60+AX59*$K$59+AX58*$K$58+AX57*$K$57+AX56*$K$56+AX55*$K$55+AX54*$K$54+AX53*$K$53+AX52*$K$52+AX51*$K$51+AX50*$K$50*AX49*$K$49+AX48*$K$48+AX47*$K$47+AX46*$K$46+AX45*$K$45+AX44*$K$44+AX43*K43+AX42*K42+AX41*K41+AX40*K40+AX39*K39+AX38*K38+AX37*K37+AX36*K36+AX35*K35+AX34*K34+AX33*K33+AX32*K32+AX31*K31+AX30*K30+AX29*$K$29+AX28*$K$28+AX27*$K$27+AX26*$K$26+AX25*$K$25+AX24*$K$24+AX23*$K$23+AX22*$K$22+AX21*$K$21+AX20*K20+AX19*$K$19+AX18*$K$18+AX17*$K$17+AX16*$K$16+AX15*$K$15+AX14*$K$14+AX13*$K$13+AX12*$K$12+AX11*$K$11+AX10*$K$10+AX9*$K$9+AX8*$K$8+AX7*$K$7+AX6*$K$6+AX5*$K$5+AX4*$K$4+AX3*$K$3 -> 0 | AY69: =AY67*$K$67+AY66*$K$66+AY65*$K$65+AY64*$K$64+AY63*$K$63+AY62*$K$62+AY61*$K$61+AY60*$K$60+AY59*$K$59+AY58*$K$58+AY57*$K$57+AY56*$K$56+AY55*$K$55+AY54*$K$54+AY53*$K$53+AY52*$K$52+AY51*$K$51+AY50*$K$50*AY49*$K$49+AY48*$K$48+AY47*$K$47+AY46*$K$46+AY45*$K$45+AY44*$K$44+AY43*L43+AY42*L42+AY41*L41+AY40*L40+AY39*L39+AY38*L38+AY37*L37+AY36*L36+AY35*L35+AY34*L34+AY33*L33+AY32*L32+AY31*L31+AY30*L30+AY29*$K$29+AY28*$K$28+AY27*$K$27+AY26*$K$26+AY25*$K$25+AY24*$K$24+AY23*$K$23+AY22*$K$22+AY21*$K$21+AY20*L20+AY19*$K$19+AY18*$K$18+AY17*$K$17+AY16*$K$16+AY15*$K$15+AY14*$K$14+AY13*$K$13+AY12*$K$12+AY11*$K$11+AY10*$K$10+AY9*$K$9+AY8*$K$8+AY7*$K$7+AY6*$K$6+AY5*$K$5+AY4*$K$4+AY3*$K$3 -> 0 | AZ69: =AZ67*$K$67+AZ66*$K$66+AZ65*$K$65+AZ64*$K$64+AZ63*$K$63+AZ62*$K$62+AZ61*$K$61+AZ60*$K$60+AZ59*$K$59+AZ58*$K$58+AZ57*$K$57+AZ56*$K$56+AZ55*$K$55+AZ54*$K$54+AZ53*$K$53+AZ52*$K$52+AZ51*$K$51+AZ50*$K$50*AZ49*$K$49+AZ48*$K$48+AZ47*$K$47+AZ46*$K$46+AZ45*$K$45+AZ44*$K$44+AZ43*M43+AZ42*M42+AZ41*M41+AZ40*M40+AZ39*M39+AZ38*M38+AZ37*M37+AZ36*M36+AZ35*M35+AZ34*M34+AZ33*M33+AZ32*M32+AZ31*M31+AZ30*M30+AZ29*$K$29+AZ28*$K$28+AZ27*$K$27+AZ26*$K$26+AZ25*$K$25+AZ24*$K$24+AZ23*$K$23+AZ22*$K$22+AZ21*$K$21+AZ20*M20+AZ19*$K$19+AZ18*$K$18+AZ17*$K$17+AZ16*$K$16+AZ15*$K$15+AZ14*$K$14+AZ13*$K$13+AZ12*$K$12+AZ11*$K$11+AZ10*$K$10+AZ9*$K$9+AZ8*$K$8+AZ7*$K$7+AZ6*$K$6+AZ5*$K$5+AZ4*$K$4+AZ3*$K$3 -> 0 | BA69: 0 | BB69: 0 | BC69: 0 | BD69: 0 | BE69: 0 | BF69: 0
B70: الخصم | M70: =M69*7/100 -> 160.8107341 | N70: =N69*7/100 -> 178.8723399 | O70: =O69*7/100 -> 126.5618697 | P70: =P69*7/100 -> 149.9549742 | Q70: =Q69*7/100 -> 64.68 | R70: =R69*12/100 -> 319.0946793 | S70: =S69*7/100 -> 279.0942 | T70: =T69*7/100 -> 38.0604 | U70: =U69*12/100 -> 646.9812 | V70: =V69*12/100 -> 688.4496 | W70: =W69*12/100 -> 127.458 | X70: =X69*12/100 -> 423.7992 | Y70: =Y69*7/100 -> 23.4276 | Z70: =Z69*7/100 -> 93.086 | AA70: =AA69*7/100 -> 9.5697 | AB70: =AB69*7/100 -> 135.87 | AC70: =AC69*12/100 -> 365.6304 | AD70: =AD69*7/100 -> 28.7091 | AE70: =AE69*7/100 -> 53.592 | AF70: =AF69*7.1/100 -> 102.6234 | AG70: =AG69*7/100 -> 12.2724 | AH70: =AH69*7.4/100 -> 62.8482 | AI70: =AI69*7.5/100 -> 47.10675 | AJ70: =AJ69*7/100 -> 18.9714 | AK70: 12.2724 | AL70: 12.2724 | AM70: 6.1026 | AN70: 29.6352 | AO70: 64.575 | AP70: 59.6022 | AQ70: =AQ69*8/100 -> 233.376 | AR70: =AR69*7/100 -> 14.0952 | AS70: 5.1366 | AT70: 23.3604 | AU70: 24.5448 | AV70: 23.3604 | AW70: 9.5697 | AX70: =AX69*7/100 -> 0 | AY70: =AY69*7/100 -> 0 | AZ70: 0 | BA70: 0 | BB70: 0 | BC70: 0 | BD70: 0 | BE70: 0 | BF70: 0
B71: بعد الخصم | M71: =M69-M70 -> 2136.485467 | N71: 2376.446801 | O71: 1681.464841 | P71: 1992.258942 | Q71: 859.32 | R71: 2340.027648 | S71: 3707.9658 | T71: 505.6596 | U71: 4744.5288 | V71: 5048.6304 | W71: 934.692 | X71: 3107.8608 | Y71: 311.2524 | Z71: 1236.714 | AA71: 127.1403 | AB71: 1805.13 | AC71: 2681.2896 | AD71: 381.4209 | AE71: 712.008 | AF71: 1342.7766 | AG71: 163.0476 | AH71: 786.4518 | AI71: 580.98325 | AJ71: 252.0486 | AK71: 163.0476 | AL71: 163.0476 | AM71: 81.0774 | AN71: 393.7248 | AO71: 857.925 | AP71: 791.8578 | AQ71: 2683.824 | AR71: 187.2648 | AS71: 68.2434 | AT71: 310.3596 | AU71: 326.0952 | AV71: 310.3596 | AW71: 127.1403 | AX71: =AX69-AX70 -> 0 | AY71: =AY69-AY70 -> 0 | AZ71: 0 | BA71: 0 | BB71: 0 | BC71: 0 | BD71: 0 | BE71: 0 | BF71: 0
BF72: =SUM(M71:BF71) -> 46279.57125
AR76: =188+311+68+327+127+310 -> 1331
C77: كود الصنف | D77: اسم الصنف | E77: سعر المستهلك شامل الضريبه
C78: 410110065 | D78: فرشة ايديال ناعمة | E78: 13.28
C79: 410110107 | D79: فرشة روما لوكس | E79: 14.61
C80: 410110104 | D80: فرشة لوكس الهلال | E80: 23.47
C81: 410110066 | D81: فرشة ايديال خشنة | E81: 14.53
C82: 410110058 | D82: فرشة ميكس الهلال | E82: 19.73
C83: 410110063 | D83: فرشة هلين اسود | E83: 23.16
C84: 410110062 | D84: فرشة سوبر هلين ناعم | E84: 24.15
C85: 410110064 | D85: فرشة سوبر هلين خشن | E85: 23.74
C86: 410118004 | D86: فرشة مدريد ناعم بيد معدن مدهون | E86: 31.9
C87: 410114000 | D87: فرشة دهب باليد المعدن | E87: 64.9
C88: 410114001 | D88: فرشة فضة ناعمة باليد المعدن | E88: 64.9
C89: 410210133 | D89: فرشة طرق وملاعب 30 سم جلبة بلاستيك | E89: 46.31
C90: 410210122 | D90: فرشة طرق وملاعب 30 سم جلبة حديد | E90: 56.68
C91: 410210123 | D91: فرشة طرق وملاعب 40 سم جلبة حديد | E91: 63.25
C92: 410210132 | D92: فرشة طرق وملاعب خشب 60 سم بدون جلبة | E92: 69.03
C93: 410210124 | D93: فرشة طرق وملاعب 60 سم جلبة حديد | E93: 98.67
C94: 410310160 | D94: فرشة أطباق الهلال | E94: 8.8
C95: 410310111 | D95: فرشة استحمام الهلال | E95: 12.23
C96: 410310119 | D96: فرشة أحواض الهلال | E96: 12.97
C97: 410114002 | D97: فرشة سيارات الهلال | E97: 22.23
C98: 410110000 | D98: فرشة الهلال متعددة الاغراض ( سيارات ) | E98: 25.32
C99: 411116979 | D99: سلاكة هلال جامبو ييد عكاز بلاستيك | E99: 21.95
C100: 410410447 | D100: مكنسة الهلال السحرية | E100: 110.53
C101: 410510071 | D101: جاروف هلال بالكاوتشة | E101: 11
C102: 410510099 | D102: فرشة بالجاروف كف الهلال | E102: 14.3
C103: 410513513 | D103: فرشة بالجاروف دولفين الهلال | E103: 20.9
C104: 410510068 | D104: فرشة بالجاروف توأم الهلال | E104: 17.6
C105: 410510072 | D105: جاروف بلدوزر كبير بالكاوتشة باليد المعدن | E105: 29.7
C106: 410512903 | D106: فرشة بالجاروف باليد الهلال | E106: 51.25
C107: 410610375 | D107: زعافة كورة الهلال بالإريال مدهون 21 مللي | E107: 27.64
C108: 410610085 | D108: زعافة كورة الهلال بالإريال جامبو | E108: 33
C109: 410710086 | D109: لمامة الهلال 3 ريشة | E109: 16.5
C110: 410810108 | D110: فرشة مكواة الهلال | E110: 9.9
C111: 410810089 | D111: فرشة سجاد الهلال | E111: 9.9
C112: 410810033 | D112: فرشة مكواة ننيجا الهلال | E112: 13.2
C113: 410810090 | D113: فرشة بلاط باليد الهلال | E113: 14.94
C114: 410812302 | D114: فرشة بلاط باليد براندو الهلال | E114: 17.6
C115: 410910088 | D115: فرشة تواليت الهلال | E115: 8.8
C116: 410910177 | D116: فرشة تواليت الهلال بالقاعدة بدون كاوتشة | E116: 20.9
C117: 410910141 | D117: فرشة تواليت بامبو الهلال بالقاعدة | E117: 20.9
C118: 410912205 | D118: فرشة هاي الهلال بالقاعدة | E118: 22
C119: 411010074 | D119: مساحة هلال صغيرة 40سم | E119: 17.6
C120: 411010080 | D120: مساحة هلال كبيرة 46سم | E120: 20.9
C121: 411010242 | D121: مساحة وفرشة ميكس الهلال 40سم | E121: 27.5
C122: 411010082 | D122: مساحة زجاج الهلال 30 سم معدن | E122: 11.86
C123: 411010081 | D123: مساحة زجاج الهلال بالإسفنجة | E123: 15.07
C124: 411310100 | D124: مساحة باركيه الهلال العجيبة | E124: 54.51
C125: 411210092 | D125: جردل الهلال بيضاوي بالعصارة | E125: 65.43
C126: 411210091 | D126: جردل إسبيدو بالعصارة | E126: 179.43
C127: 411410144 | D127: يد جردل سبيدو | E127: 54.61
C128: 411310096 | D128: موب قطن الهلال | E128: 9.9
C129: 411316999 | D129: موب قطن 100% بيد معدن 120 سم مدهون | E129: 27.5
C130: 411316984 | D130: موب قطن 100% | E130: 16.5
C131: 411310541 | D131: غيار قطنة اسبيدو | E131: 16.5
C132: 411410116 | D132: يد زان الهلال 120 سم مغلف | E132: 11.16
C133: 411410167 | D133: يد خشب لوكس الهلال مدهون ( يد غليظة 120سم) | E133: 15.55
C134: 420718107 | D134: جردل توتينز الهلال | E134: 72.61
C135: 410912202 | D135: فرشة تواليت بالقاعدة باريس | E135: 16.5
C136: 410310109 | D136: فرشة ملابس الهلال | E136: 13.2
C137: 410610098 | D137: زعافة كورة الهلال بالإريال مطبوع | E137: 31.9
C138: 411719238 | D138: منشر غسيل هلال 3 دور | E138: 438.9
C139: 411416970 | D139: يد هلال معدن 120 سم مدهون أحمر | E139: 16.5
C140: 410410054 | D140: مكنسة سوبر أجزى | E140: 19.14
C141: 420115017 | D141: زبالة كوين 8 لتر | E141: 61.63
C142: 411012503 | D142: مساحة ستايل 40سم | E142: 21.26
C143: 410710087 | D143: لمامة 4 ريشة | E143: 17.91
C144: 411012501 | D144: مساحة معدن 55سم | E144: 61.62478522
C145: 411012502 | D145: مساحة معدن 75سم | E145: 76.44437285
C146: 410114310 | D146: فرشة جندولا | E146: 15.185313
C147: 420119132 | D147: باسكت دانتيلا مدور | E147: 26.12003625
C148: 420119133 | D148: باسكت دانتيلا مربع | E148: 25.698222
C149: 420218106 | D149: سبت غسيل دانتيلا كبير 70 لتر | E149: 233.3389905
AR153: =AR76-53 -> 1278
E165: 150 | F165: 9.97 | I165: =E165*F165 -> 1495.5 | J165: =F165*0.23 -> 2.2931 | K165: =I165-J165 -> 1493.2069 | N165: =F165-J165 -> 7.6769 | O165: =N165*E165 -> 1151.535
E166: 180 | F166: 7.72 | I166: =E166*F166 -> 1389.6 | J166: =F166*0.23 -> 1.7756 | K166: =I166-J166 -> 1387.8244 | N166: =F166-J166 -> 5.9444 | O166: =N166*E166 -> 1069.992
E167: 216 | F167: 24.25 | I167: 5238 | J167: 5.5775 | K167: 5232.4225 | N167: 18.6725 | O167: 4033.26
E168: 312 | F168: 11.58 | I168: 3612.96 | J168: 2.6634 | K168: 3610.2966 | N168: 8.9166 | O168: 2781.9792
E169: 60 | F169: 7.72 | I169: 463.2 | J169: 1.7756 | K169: 461.4244 | N169: 5.9444 | O169: 356.664
E170: 300 | F170: 18.33 | I170: 5499 | J170: 4.2159 | K170: 5494.7841 | N170: 14.1141 | O170: 4234.23
E171: 60 | F171: 19.25 | I171: 1155 | J171: 4.4275 | K171: 1150.5725 | N171: 14.8225 | O171: 889.35
E172: 1200 | F172: 19.25 | I172: 23100 | J172: 4.4275 | K172: 23095.5725 | N172: 14.8225 | O172: 17787
I173: =SUM(I165:I172) -> 41953.26 | J173: 0 | K173: =SUM(K165:K172) -> 41926.1039 | O173: =SUM(O165:O172) -> 32304.0102
D174: =I173 -> 41953.26 | I174: =I173*0.14 -> 5873.4564 | J174: 0 | K174: =K173*0.14 -> 5869.654546 | O174: =O173*0.14 -> 4522.561428
D175: =D174*0.23 -> 9649.2498 | I175: =I173+I174 -> 47826.7164 | K175: =K173+K174 -> 47795.75845 | O175: =O173+O174 -> 36826.57163
I176: =I175*0.23 -> 11000.14477
I177: =I175-I176 -> 36826.57163

Sheet DATA
A1: التاريخ | B1: رمز الشركة | C1: رقم اللوحة | D1: مستلم السيارة | E1: رقم الكمبيوتر | F1: الوظيفة | G1: اسم المشروع | H1: سبب العطل | I1: ملاحظات | J1: =COLUMN() -> 10 | K1: =COLUMN() -> 11 | L1: =COLUMN() -> 12 | M1: =COLUMN() -> 13 | N1: =COLUMN() -> 14 | Z1: مندوب
A2: م | B2: كود الصنف | C2: Barcode | D2: الإسم الجديد للمنتج على التغليف و السيستم | E2: Brand | F2: العائلة | G2: الوحدة | H2: قائمة الاساسيه غير شامله الضريبه | I2: قائمة الاساسيه شامله الضريبه | J2: قائمة الجمله شامله الضريبه | K2: قائمه الاسعار بعد الزياده شامله الضريبه | L2: قائمة التجزئه شامله الضريبه | M2: MNDOB | N2: DATE | Z2: عمرو
A3: 2022-04-03 | B3: 410110065 | C3: 6222016100657 | D3: فرشة ايديال ناعمة | E3: Helal | F3: فرش و مكانس | G3: قطعة | H3: 10.62698763 | I3: =H3+(H3*14%) -> 12.1147659 | J3: =I3-(I3*12%) -> 10.66099399 | K3: =VLOOKUP(B3,'[1]مخزن الهلال'!$B$81:$D$153,3,0) -> 13.28 | L3: =I3-(I3*7%) -> 11.26673228 | M3: عمرو | N3: 2022-04-03 | Z3: هشام
A4: 2022-04-03 | B4: 410110107 | C4: 6222016101074 | D4: فرشة روما لوكس | E4: Helal | F4: فرش و مكانس | G4: قطعة | H4: 11.30403328 | I4: 12.88659794 | J4: 11.34020619 | K4: =VLOOKUP(B4,'[1]مخزن الهلال'!$B$81:$D$153,3,0) -> 14.61 | L4: 11.98453608 | M4: هشام | N4: 2022-04-04 | Z4: احمد سمير
A5: 2022-04-05 | B5: 410110104 | C5: 6222016101043 | D5: فرشة لوكس الهلال | E5: Helal | F5: فرش و مكانس | G5: قطعة | H5: 14 | I5: 15.96 | J5: 14.0448 | K5: =VLOOKUP(B5,'[1]مخزن الهلال'!$B$81:$D$153,3,0) -> 23.47 | L5: 14.8428 | M5: احمد سمير | N5: 2022-04-05
A6: =A5+1 -> 2022-04-06 | B6: 410110066 | C6: 6222016100664 | D6: فرشة ايديال خشنة | E6: Helal | F6: فرش و مكانس | G6: قطعة | H6: 11.58663411 | I6: 13.20876289 | J6: 11.62371134 | K6: =VLOOKUP(B6,'[1]مخزن الهلال'!$B$81:$D$153,3,0) -> 14.53 | L6: 12.28414948
A7: 2022-04-07 | B7: 410110058 | C7: 6222016100589 | D7: فرشة ميكس الهلال | E7: Helal | F7: فرش و مكانس | G7: قطعة | H7: 15.73144631 | I7: 17.9338488 | J7: 15.78178694 | K7: =VLOOKUP(B7,'[1]مخزن الهلال'!$B$81:$D$153,3,0) -> 19.73 | L7: 16.67847938
A8: 2022-04-08 | B8: 410110063 | C8: 6222016100633 | D8: فرشة هلين اسود | E8: Helal | F8: فرش و مكانس | G8: قطعة | H8: 15.07204437 | I8: 17.18213058 | J8: 15.12027491 | K8: =VLOOKUP(B8,'[1]مخزن الهلال'!$B$81:$D$153,3,0) -> 23.16 | L8: 15.97938144
A9: 2022-04-09 | B9: 410110062 | C9: 6222016100626 | D9: فرشة سوبر هلين ناعم | E9: Helal | F9: فرش و مكانس | G9: قطعة | H9: 15.73144631 | I9: 17.9338488 | J9: 15.78178694 | K9: =VLOOKUP(B9,'[1]مخزن الهلال'!$B$81:$D$153,3,0) -> 24.15 | L9: 16.67847938 | N9: 12
A10: 2022-04-10 | B10: 410110064 | C10: 6222016100640 | D10: فرشة سوبر هلين خشن | E10: Helal | F10: فرش و مكانس | G10: قطعة | H10: 15.73144631 | I10: 17.9338488 | J10: 15.78178694 | K10: =VLOOKUP(B10,'[1]مخزن الهلال'!$B$81:$D$153,3,0) -> 23.74 | L10: 16.67847938 | N10: 12
A11: 2022-04-11 | B11: 410118004 | C11: 6222016180048 | D11: فرشة مدريد ناعم بيد معدن مدهون | E11: Helal | F11: فرش و مكانس | G11: قطعة | H11: 25.43859649 | I11: 29 | J11: 25.52 | K11: =VLOOKUP(B11,'[1]مخزن الهلال'!$B$81:$D$153,3,0) -> 31.9 | L11: 26.97
A12: 2022-04-12 | B12: 410114000 | C12: 6222016140004 | D12: فرشة دهب باليد المعدن | E12: Helal | F12: فرش و مكانس | G12: قطعة | H12: 51.75438596 | I12: 59 | J12: 51.92 | K12: =VLOOKUP(B12,'[1]مخزن الهلال'!$B$81:$D$153,3,0) -> 64.9 | L12: 54.87
A13: 2022-04-13 | B13: 410114001 | C13: 6222016140011 | D13: فرشة فضة ناعمة باليد المعدن | E13: Helal | F13: فرش و مكانس | G13: قطعة | H13: 51.75438596 | I13: 59 | J13: 51.92 | K13: =VLOOKUP(B13,'[1]مخزن الهلال'!$B$81:$D$153,3,0) -> 64.9 | L13: 54.87
A14: 2022-04-14 | B14: 410210133 | C14: 6222016101333 | D14: فرشة طرق وملاعب 30 سم جلبة بلاستيك | E14: Helal | F14: فرش و مكانس | G14: قطعة | H14: 36.93079054 | I14: 42.10110122 | J14: 37.04896907 | K14: =VLOOKUP(B14,'[1]مخزن الهلال'!$B$81:$D$153,3,0) -> 46.31 | L14: 39.15402413
A15: 2022-04-15 | B15: 410210122 | C15: 6222016101227 | D15: فرشة طرق وملاعب 30 سم جلبة حديد | E15: Helal | F15: فرش و مكانس | G15: قطعة | H15: 45.20328762 | I15: 51.53174789 | J15: 45.34793814 | K15: =VLOOKUP(B15,'[1]مخزن الهلال'!$B$81:$D$153,3,0) -> 56.68 | L15: 47.92452554
A16: 2022-04-16 | B16: 410210123 | C16: 6222016101234 | D16: فرشة طرق وملاعب 40 سم جلبة حديد | E16: Helal | F16: فرش و مكانس | G16: قطعة | H16: 55.05149844 | I16: 62.75870822 | J16: 55.22766323 | K16: =VLOOKUP(B16,'[1]مخزن الهلال'!$B$81:$D$153,3,0) -> 63.25 | L16: 58.36559864
A17: 2022-04-17 | B17: 410210132 | C17: 6222016101326 | D17: فرشة طرق وملاعب خشب 60 سم بدون جلبة | E17: Helal | F17: فرش و مكانس | G17: قطعة | H17: 55.05149844 | I17: 62.75870822 | J17: 55.22766323 | K17: =VLOOKUP(B17,'[1]مخزن الهلال'!$B$81:$D$153,3,0) -> 69.03 | L17: 58.36559864
A18: 2022-04-18 | B18: 410210124 | C18: 6222016101241 | D18: فرشة طرق وملاعب 60 سم جلبة حديد | E18: Helal | F18: فرش و مكانس | G18: قطعة | H18: 78.68720438 | I18: 89.703413 | J18: 78.93900344 | K18: =VLOOKUP(B18,'[1]مخزن الهلال'!$B$81:$D$153,3,0) -> 98.67 | L18: 83.42417409
A19: 2022-04-19 | B19: 410310160 | C19: 6222016101609 | D19: فرشة أطباق الهلال | E19: Helal | F19: فرشة أطباق | G19: قطعة | H19: 7.01754386 | I19: 8 | J19: 7.04 | K19: =VLOOKUP(B19,'[1]مخزن الهلال'!$B$81:$D$153,3,0) -> 8.8 | L19: 7.44
A20: 2022-04-20 | B20: 410310111 | C20: 6222016101111 | D20: فرشة استحمام الهلال | E20: Helal | F20: فرشة استحمام | G20: قطعة | H20: 9.749728703 | I20: 11.11469072 | J20: 9.780927835 | K20: =VLOOKUP(B20,'[1]مخزن الهلال'!$B$81:$D$153,3,0) -> 12.23 | L20: 10.33666237
A21: 2022-04-21 | B21: 410310119 | C21: 6222016101197 | D21: فرشة أحواض الهلال | E21: Helal | F21: فرشة أحواض | G21: قطعة | H21: 10.34062135 | I21: 11.78830834 | J21: 10.37371134 | K21: =VLOOKUP(B21,'[1]مخزن الهلال'!$B$81:$D$153,3,0) -> 12.97 | L21: 10.96312676
A22: 2022-04-22 | B22: 410114002 | C22: 6222016140028 | D22: فرشة سيارات الهلال | E22: Helal | F22: فرش متنوعة | G22: قطعة | H22: 17.72677946 | I22: 20.20852858 | J22: 17.78350515 | K22: =VLOOKUP(B22,'[1]مخزن الهلال'!$B$81:$D$153,3,0) -> 22.23 | L22: 18.79393158
A23: 2022-04-23 | B23: 410110000 | C23: 6222016100008 | D23: فرشة الهلال متعددة الاغراض ( سيارات ) | E23: Helal | F23: فرش متنوعة | G23: قطعة | H23: 20.18883216 | I23: 23.01526867 | J23: 20.25343643 | K23: =VLOOKUP(B23,'[1]مخزن الهلال'!$B$81:$D$153,3,0) -> 25.32 | L23: 21.40419986
A24: 2022-04-24 | B24: 411116979 | C24: 6222016169791 | D24: سلاكة هلال جامبو ييد عكاز بلاستيك | E24: Helal | F24: سلاكة | G24: قطعة | H24: =19.95/1.14 -> 17.5 | I24: 19.95 | J24: 17.556 | K24: =VLOOKUP(B24,'[1]مخزن الهلال'!$B$81:$D$153,3,0) -> 21.95 | L24: 18.5535
A25: 2022-04-25 | B25: 410410447 | C25: 6222016104471 | D25: مكنسة الهلال السحرية | E25: Helal | F25: فرش و مكانس | G25: قطعة | H25: 88.14148676 | I25: 100.4812949 | J25: 88.42353952 | K25: =VLOOKUP(B25,'[1]مخزن الهلال'!$B$81:$D$153,3,0) -> 110.53 | L25: 93.44760426
A26: 2022-04-26 | B26: 410510071 | C26: 6222016100718 | D26: جاروف هلال بالكاوتشة | E26: Helal | F26: جاروف | G26: قطعة | H26: 8.771929825 | I26: 10 | J26: 8.8 | K26: =VLOOKUP(B26,'[1]مخزن الهلال'!$B$81:$D$153,3,0) -> 11 | L26: 9.3
A27: 2022-04-27 | B27: 410510099 | C27: 6222016100992 | D27: فرشة بالجاروف كف الهلال | E27: Helal | F27: فرشة بالجاروف | G27: قطعة | H27: =13/1.14 -> 11.40350877 | I27: 13 | J27: 11.44 | K27: =VLOOKUP(B27,'[1]مخزن الهلال'!$B$81:$D$153,3,0) -> 14.3 | L27: 12.09
A28: 2022-04-28 | B28: 410513513 | C28: 6222016135130 | D28: فرشة بالجاروف دولفين الهلال | E28: Helal | F28: فرشة بالجاروف | G28: قطعة | H28: 16.66666667 | I28: 19 | J28: 16.72 | K28: =VLOOKUP(B28,'[1]مخزن الهلال'!$B$81:$D$153,3,0) -> 20.9 | L28: 17.67
A29: 2022-04-29 | B29: 410510068 | C29: 6222016100688 | D29: فرشة بالجاروف توأم الهلال | E29: Helal | F29: فرشة بالجاروف | G29: قطعة | H29: =16/1.14 -> 14.03508772 | I29: 16 | J29: 14.08 | K29: =VLOOKUP(B29,'[1]مخزن الهلال'!$B$81:$D$153,3,0) -> 17.6 | L29: 14.88
A30: 2022-04-30 | B30: 410510072 | C30: 6222016100725 | D30: جاروف بلدوزر كبير بالكاوتشة باليد المعدن | E30: Helal | F30: فرشة بالجاروف | G30: قطعة | H30: 23.68421053 | I30: 27 | J30: 23.76 | K30: =VLOOKUP(B30,'[1]مخزن الهلال'!$B$81:$D$153,3,0) -> 29.7 | L30: 25.11
A31: 2022-05-01 | B31: 410512903 | C31: 6222016129030 | D31: فرشة بالجاروف باليد الهلال | E31: Helal | F31: فرشة بالجاروف | G31: قطعة | H31: 42.98245614 | I31: 49 | J31: 43.12 | K31: =VLOOKUP(B31,'[1]مخزن الهلال'!$B$81:$D$153,3,0) -> 51.25 | L31: 45.57 | N31: 12
A32: 2022-05-02 | B32: 410610375 | C32: 6222016103757 | D32: زعافة كورة الهلال بالإريال مدهون 21 مللي | E32: Helal | F32: زعافة | G32: قطعة | H32: =26/1.14 -> 22.80701754 | I32: 26 | J32: 22.88 | K32: =VLOOKUP(B32,'[1]مخزن الهلال'!$B$81:$D$153,3,0) -> 27.64 | L32: 24.18
A33: 2022-05-03 | B33: 410610085 | C33: 6222016100855 | D33: زعافة كورة الهلال بالإريال جامبو | E33: Helal | F33: زعافة | G33: قطعة | H33: 26.31578947 | I33: 30 | J33: 26.4 | K33: =VLOOKUP(B33,'[1]مخزن الهلال'!$B$81:$D$153,3,0) -> 33 | L33: 27.9
A34: 2022-05-04 | B34: 410710086 | C34: 6222016100862 | D34: لمامة الهلال 3 ريشة | E34: Helal | F34: لمامة | G34: قطعة | H34: 13.15789474 | I34: 15 | J34: 13.2 | K34: =VLOOKUP(B34,'[1]مخزن الهلال'!$B$81:$D$153,3,0) -> 16.5 | L34: 13.95
A35: 2022-05-05 | B35: 410810108 | C35: 6222016101081 | D35: فرشة مكواة الهلال | E35: Helal | F35: فرشة مكواة | G35: قطعة | H35: =9/1.14 -> 7.894736842 | I35: 9 | J35: 7.92 | K35: =VLOOKUP(B35,'[1]مخزن الهلال'!$B$81:$D$153,3,0) -> 9.9 | L35: 8.37
A36: 2022-05-06 | B36: 410810089 | C36: 6222016100893 | D36: فرشة سجاد الهلال | E36: Helal | F36: فرشة سجاد | G36: قطعة | H36: =9/1.14 -> 7.894736842 | I36: 9 | J36: 7.92 | K36: =VLOOKUP(B36,'[1]مخزن الهلال'!$B$81:$D$153,3,0) -> 9.9 | L36: 8.37
A37: 2022-05-07 | B37: 410810033 | C37: 6222016100336 | D37: فرشة مكواة ننيجا الهلال | E37: Helal | F37: فرشة مكواة | G37: قطعة | H37: 10.52631579 | I37: 12 | J37: 10.56 | K37: =VLOOKUP(B37,'[1]مخزن الهلال'!$B$81:$D$153,3,0) -> 13.2 | L37: 11.16
A38: 2022-05-08 | B38: 410810090 | C38: 6222016100909 | D38: فرشة بلاط باليد الهلال | E38: Helal | F38: فرشة بلاط | G38: قطعة | H38: 11.914 | I38: 13.58196 | J38: 11.9521248 | K38: =VLOOKUP(B38,'[1]مخزن الهلال'!$B$81:$D$153,3,0) -> 14.94 | L38: 12.6312228
A39: 2022-05-09 | B39: 410812302 | C39: 6222016123021 | D39: فرشة بلاط باليد براندو الهلال | E39: Helal | F39: فرشة بلاط | G39: قطعة | H39: =16/1.14 -> 14.03508772 | I39: 16 | J39: 14.08 | K39: =VLOOKUP(B39,'[1]مخزن الهلال'!$B$81:$D$153,3,0) -> 17.6 | L39: 14.88
A40: 2022-05-10 | B40: 410910088 | C40: 6222016100886 | D40: فرشة تواليت الهلال | E40: Helal | F40: فرش تواليت | G40: قطعة | H40: =8/1.14 -> 7.01754386 | I40: 8 | J40: 7.04 | K40: =VLOOKUP(B40,'[1]مخزن الهلال'!$B$81:$D$153,3,0) -> 8.8 | L40: 7.44
A41: 2022-05-11 | B41: 410910177 | C41: 6222016101777 | D41: فرشة تواليت الهلال بالقاعدة بدون كاوتشة | E41: Helal | F41: فرش تواليت | G41: قطعة | H41: 16.66666667 | I41: 19 | J41: 16.72 | K41: =VLOOKUP(B41,'[1]مخزن الهلال'!$B$81:$D$153,3,0) -> 20.9 | L41: 17.67
A42: 2022-05-12 | B42: 410910141 | C42: 6222016101418 | D42: فرشة تواليت بامبو الهلال بالقاعدة | E42: Helal | F42: فرش تواليت | G42: قطعة | H42: 16.66666667 | I42: 19 | J42: 16.72 | K42: =VLOOKUP(B42,'[1]مخزن الهلال'!$B$81:$D$153,3,0) -> 20.9 | L42: 17.67
A43: 2022-05-13 | B43: 410912205 | C43: 6222016122055 | D43: فرشة هاي الهلال بالقاعدة | E43: Helal | F43: فرش تواليت | G43: قطعة | H43: 17.54385965 | I43: 20 | J43: 17.6 | K43: =VLOOKUP(B43,'[1]مخزن الهلال'!$B$81:$D$153,3,0) -> 22 | L43: 18.6
A44: 2022-05-14 | B44: 411010074 | C44: 6222016100749 | D44: مساحة هلال صغيرة 40سم | E44: Helal | F44: مساحة | G44: قطعة | H44: 14.03508772 | I44: 16 | J44: 14.08 | K44: =VLOOKUP(B44,'[1]مخزن الهلال'!$B$81:$D$153,3,0) -> 17.6 | L44: 14.88
A45: 2022-05-15 | B45: 411010080 | C45: 6222016100800 | D45: مساحة هلال كبيرة 46سم | E45: Helal | F45: مساحة | G45: قطعة | H45: 16.66666667 | I45: 19 | J45: 16.72 | K45: =VLOOKUP(B45,'[1]مخزن الهلال'!$B$81:$D$153,3,0) -> 20.9 | L45: 17.67
A46: 2022-05-16 | B46: 411010242 | C46: 6222016102422 | D46: مساحة وفرشة ميكس الهلال 40سم | E46: Helal | F46: مساحة | G46: قطعة | H46: 21.92982456 | I46: 25 | J46: 22 | K46: =VLOOKUP(B46,'[1]مخزن الهلال'!$B$81:$D$153,3,0) -> 27.5 | L46: 23.25
A47: 2022-05-17 | B47: 411010082 | C47: 6222016100824 | D47: مساحة زجاج الهلال 30 سم معدن | E47: Helal | F47: مساحة زجاج | G47: قطعة | H47: 9.454282379 | I47: 10.77788191 | J47: 9.484536082 | K47: =VLOOKUP(B47,'[1]مخزن الهلال'!$B$81:$D$153,3,0) -> 11.86 | L47: 10.02343018
A48: 2022-05-18 | B48: 411010081 | C48: 6222016100817 | D48: مساحة زجاج الهلال بالإسفنجة | E48: Helal | F48: مساحة زجاج | G48: قطعة | H48: 12.01481719 | I48: 13.6968916 | J48: 12.0532646 | K48: =VLOOKUP(B48,'[1]مخزن الهلال'!$B$81:$D$153,3,0) -> 15.07 | L48: 12.73810918
A49: 2022-05-19 | B49: 411310100 | C49: 6222016101005 | D49: مساحة باركيه الهلال العجيبة | E49: Helal | F49: مساحة | G49: قطعة | H49: 43.47 | I49: 49.5558 | J49: 43.609104 | K49: =VLOOKUP(B49,'[1]مخزن الهلال'!$B$81:$D$153,3,0) -> 54.51 | L49: 46.086894
A50: 2022-05-20 | B50: 411210092 | C50: 6222016100923 | D50: جردل الهلال بيضاوي بالعصارة | E50: Helal | F50: جرادل | G50: قطعة | H50: 52.17819885 | I50: 59.48314669 | J50: 52.34516909 | K50: =VLOOKUP(B50,'[1]مخزن الهلال'!$B$81:$D$153,3,0) -> 65.43 | L50: 55.31932642
A51: 2022-05-21 | B51: 411210091 | C51: 6222016100916 | D51: جردل إسبيدو بالعصارة | E51: Helal | F51: جرادل | G51: قطعة | H51: 143.0897608 | I51: 163.1223273 | J51: 143.547648 | K51: =VLOOKUP(B51,'[1]مخزن الهلال'!$B$81:$D$153,3,0) -> 179.43 | L51: 151.7037644 | N51: 2
A52: 2022-05-22 | B52: 411410144 | C52: 6222016101449 | D52: يد جردل سبيدو | E52: Helal | F52: جرادل | G52: قطعة | H52: 43.54973325 | I52: 49.64669591 | J52: 43.6890924 | K52: =VLOOKUP(B52,'[1]مخزن الهلال'!$B$81:$D$153,3,0) -> 54.61 | L52: 46.1714272
A53: 2022-05-23 | B53: 411310096 | C53: 6222016100961 | D53: موب قطن الهلال | E53: Helal | F53: موب | G53: قطعة | H53: =9/1.14 -> 7.894736842 | I53: 9 | J53: 7.92 | K53: =VLOOKUP(B53,'[1]مخزن الهلال'!$B$81:$D$153,3,0) -> 9.9 | L53: 8.37
A54: 2022-05-24 | B54: 411316999 | C54: 6222016169999 | D54: موب قطن 100% بيد معدن 120 سم مدهون | E54: Helal | F54: موب | G54: قطعة | H54: 21.93 | I54: 25.0002 | J54: 22.000176 | K54: =VLOOKUP(B54,'[1]مخزن الهلال'!$B$81:$D$153,3,0) -> 27.5 | L54: 23.250186
A55: 2022-05-25 | B55: 411316984 | C55: 6222016169845 | D55: موب قطن 100% | E55: Helal | F55: موب | G55: قطعة | H55: 13.15789474 | I55: 15 | J55: 13.2 | K55: =VLOOKUP(B55,'[1]مخزن الهلال'!$B$81:$D$153,3,0) -> 16.5 | L55: 13.95
A56: 2022-05-26 | B56: 411310541 | C56: 6222016105416 | D56: غيار قطنة اسبيدو | E56: Helal | F56: موب | G56: قطعة | H56: 13.16 | I56: 15.0024 | J56: 13.202112 | K56: =VLOOKUP(B56,'[1]مخزن الهلال'!$B$81:$D$153,3,0) -> 16.5 | L56: 13.952232
A57: 2022-05-27 | B57: 411410116 | C57: 6222016101166 | D57: يد زان الهلال 120 سم مغلف | E57: Helal | F57: أيادي | G57: قطعة | H57: 8.901272778 | I57: 10.14745097 | J57: 8.929756851 | K57: =VLOOKUP(B57,'[1]مخزن الهلال'!$B$81:$D$153,3,0) -> 11.16 | L57: 9.437129399
A58: 2022-05-28 | B58: 411410167 | C58: 6222016101678 | D58: يد خشب لوكس الهلال مدهون ( يد غليظة 120سم) | E58: Helal | F58: أيادي | G58: قطعة | H58: 12.39822222 | I58: 14.13397333 | J58: 12.43789653 | K58: =VLOOKUP(B58,'[1]مخزن الهلال'!$B$81:$D$153,3,0) -> 15.55 | L58: 13.1445952
A59: 2022-05-29 | B59: 420718107 | C59: 6222016181076 | D59: جردل توتينز الهلال | E59: Helal | F59: جرادل | G59: قطعة | H59: 51.75438596 | I59: 59 | J59: 51.92 | K59: =VLOOKUP(B59,'[1]مخزن الهلال'!$B$81:$D$153,3,0) -> 72.61 | L59: 54.87
A60: 2022-05-30 | B60: 410912202 | C60: 6222016122024 | D60: فرشة تواليت بالقاعدة باريس | E60: Helal | F60: فرش تواليت | G60: قطعة | H60: 13.15789474 | I60: 15 | J60: 13.2 | K60: =VLOOKUP(B60,'[1]مخزن الهلال'!$B$81:$D$153,3,0) -> 16.5 | L60: 13.95
A61: 2022-05-31 | B61: 410310109 | C61: 6222016101098 | D61: فرشة ملابس الهلال | E61: Helal | F61: فرشة ملابس | G61: قطعة | H61: 10.52631579 | I61: 12 | J61: 10.56 | K61: =VLOOKUP(B61,'[1]مخزن الهلال'!$B$81:$D$153,3,0) -> 13.2 | L61: 11.16
A62: 2022-06-01 | B62: 410610098 | C62: 6222016100985 | D62: زعافة كورة الهلال بالإريال مطبوع | E62: Helal | F62: زعافة | G62: قطعة | H62: 25.43859649 | I62: 29 | J62: 25.52 | K62: =VLOOKUP(B62,'[1]مخزن الهلال'!$B$81:$D$153,3,0) -> 31.9 | L62: 26.97
A63: 2022-06-02 | B63: 411719238 | C63: 6222016192386 | D63: منشر غسيل هلال 3 دور | E63: Helal | F63: منشر | G63: قطعة | H63: 350 | I63: 399 | J63: 351.12 | K63: =VLOOKUP(B63,'[1]مخزن الهلال'!$B$81:$D$153,3,0) -> 438.9 | L63: 371.07 | N63: 2
A64: 2022-06-03 | B64: 411416970 | C64: 6222016169708 | D64: يد هلال معدن 120 سم مدهون أحمر | E64: Helal | F64: أيادي | G64: قطعة | H64: 13.15789474 | I64: 15 | J64: 13.2 | K64: =VLOOKUP(B64,'[1]مخزن الهلال'!$B$81:$D$153,3,0) -> 16.5 | L64: 13.95
A65: =A64+1 -> 2022-06-04 | B65: 420115017 | D65: زباله كوين 8 لتر | F65: جردل | G65: قطعة | I65: 56.03 | J65: 49.3064 | K65: =VLOOKUP(B65,'[1]مخزن الهلال'!$B$81:$D$153,3,0) -> 61.63 | L65: 52.1079
A66: =A65+1 -> 2022-06-05 | B66: 411012503 | D66: مساحة ستايل 40سم | F66: مساحه | G66: قطعة | I66: 19.32 | J66: 17.0016 | K66: =VLOOKUP(B66,'[1]مخزن الهلال'!$B$81:$D$153,3,0) -> 21.26 | L66: 17.9676
A67: 2022-06-06 | B67: 410710087 | D67: لمامة 4 ريشة | F67: لمامه | G67: قطعة | I67: 16.28 | J67: =I67-(I67*12%) -> 14.3264 | K67: =VLOOKUP(B67,'[1]مخزن الهلال'!$B$81:$D$153,3,0) -> 17.91 | L67: =I67-(I67*7%) -> 15.1404
A77: عمرو | B77: 410110062 | C77: فرشة سوبر هلين ناعم | D77: قطعة | E77: 12 | F77: 24.15 | G77: 289.8 | H77: 20.286 | I77: 269.514 | J77: 73
A78: عمرو | C78: 0 | D78: 0 | F78: 0 | G78: 0 | H78: 0 | I78: 0 | J78: 74
A79: عمرو | C79: 0 | D79: 0 | F79: 0 | G79: 0 | H79: 0 | I79: 0 | J79: 75
A80: عمرو | C80: 0 | D80: 0 | F80: 0 | G80: 0 | H80: 0 | I80: 0 | J80: 76
A81: عمرو | C81: 0 | D81: 0 | F81: 0 | G81: 0 | H81: 0 | I81: 0 | J81: 77
A82: عمرو | C82: 0 | D82: 0 | F82: 0 | G82: 0 | H82: 0 | I82: 0 | J82: 78
A83: عمرو | C83: 0 | D83: 0 | F83: 0 | G83: 0 | H83: 0 | I83: 0 | J83: 79
A84: عمرو | C84: 0 | D84: 0 | F84: 0 | G84: 0 | H84: 0 | I84: 0 | J84: 80
A85: عمرو | C85: 0 | D85: 0 | F85: 0 | G85: 0 | H85: 0 | I85: 0 | J85: 81
A86: عمرو | C86: 0 | D86: 0 | F86: 0 | G86: 0 | H86: 0 | I86: 0 | J86: 82
A87: عمرو | C87: 0 | D87: 0 | F87: 0 | G87: 0 | H87: 0 | I87: 0 | J87: 83
A88: عمرو | C88: 0 | D88: 0 | F88: 0 | G88: 0 | H88: 0 | I88: 0 | J88: 84
A89: عمرو | C89: 0 | D89: 0 | F89: 0 | G89: 0 | H89: 0 | I89: 0 | J89: 85
A90: عمرو | C90: 0 | D90: 0 | F90: 0 | G90: 0 | H90: 0 | I90: 0 | J90: 86
A91: عمرو | C91: 0 | D91: 0 | F91: 0 | G91: 0 | H91: 0 | I91: 0 | J91: 87
A92: عمرو | C92: 0 | D92: 0 | F92: 0 | G92: 0 | H92: 0 | I92: 0 | J92: 88
A93: عمرو | C93: 0 | D93: 0 | F93: 0 | G93: 0 | H93: 0 | I93: 0 | J93: 89
A94: عمرو | C94: 0 | D94: 0 | F94: 0 | G94: 0 | H94: 0 | I94: 0 | J94: 90
A95: عمرو | C95: 0 | D95: 0 | F95: 0 | G95: 0 | H95: 0 | I95: 0 | J95: 91
A96: عمرو | C96: 0 | D96: 0 | F96: 0 | G96: 0 | H96: 0 | I96: 0 | J96: 92
A97: عمرو | C97: 0 | D97: 0 | F97: 0 | G97: 0 | H97: 0 | I97: 0 | J97: 93
A98: عمرو | C98: 0 | D98: 0 | F98: 0 | G98: 0 | H98: 0 | I98: 0 | J98: 94
A99: عمرو | C99: 0 | D99: 0 | F99: 0 | G99: 0 | H99: 0 | I99: 0 | J99: 95
A100: عمرو | C100: 0 | D100: 0 | F100: 0 | G100: 0 | H100: 0 | I100: 0 | J100: 96
A101: عمرو | C101: 0 | D101: 0 | F101: 0 | G101: 0 | H101: 0 | I101: 0 | J101: 97
A102: عمرو | C102: 0 | D102: 0 | F102: 0 | G102: 0 | H102: 0 | I102: 0 | J102: 98
A103: عمرو | C103: 0 | D103: 0 | F103: 0 | G103: 0 | H103: 0 | I103: 0 | J103: 99
A104: عمرو | C104: 0 | D104: 0 | F104: 0 | G104: 0 | H104: 0 | I104: 0 | J104: 100
A105: عمرو | C105: 0 | D105: 0 | F105: 0 | G105: 0 | H105: 0 | I105: 0 | J105: 101
A106: عمرو | C106: 0 | D106: 0 | F106: 0 | G106: 0 | H106: 0 | I106: 0 | J106: 102
A107: عمرو | C107: 0 | D107: 0 | F107: 0 | G107: 0 | H107: 0 | I107: 0 | J107: 103
A108: عمرو | C108: 0 | D108: 0 | F108: 0 | G108: 0 | H108: 0 | I108: 0 | J108: 104
A109: عمرو | C109: 0 | D109: 0 | F109: 0 | G109: 0 | H109: 0 | I109: 0 | J109: 105
A110: عمرو | C110: 0 | D110: 0 | F110: 0 | G110: 0 | H110: 0 | I110: 0 | J110: 106
A111: عمرو | C111: 0 | D111: 0 | F111: 0 | G111: 0 | H111: 0 | I111: 0 | J111: 107
A112: عمرو | C112: 0 | D112: 0 | F112: 0 | G112: 0 | H112: 0 | I112: 0 | J112: 108
A113: عمرو | C113: 0 | D113: 0 | F113: 0 | G113: 0 | H113: 0 | I113: 0 | J113: 109
A114: عمرو | C114: 0 | D114: 0 | F114: 0 | G114: 0 | H114: 0 | I114: 0 | J114: 110
A115: عمرو | C115: 0 | D115: 0 | F115: 0 | G115: 0 | H115: 0 | I115: 0 | J115: 111
A116: عمرو | C116: 0 | D116: 0 | F116: 0 | G116: 0 | H116: 0 | I116: 0 | J116: 112
A117: عمرو | C117: 0 | D117: 0 | F117: 0 | G117: 0 | H117: 0 | I117: 0 | J117: 113
A118: عمرو | C118: 0 | D118: 0 | F118: 0 | G118: 0 | H118: 0 | I118: 0 | J118: 114
A119: عمرو | C119: 0 | D119: 0 | F119: 0 | G119: 0 | H119: 0 | I119: 0 | J119: 115
A120: عمرو | C120: 0 | D120: 0 | F120: 0 | G120: 0 | H120: 0 | I120: 0 | J120: 116
A121: عمرو | B121: 0 | C121: 0 | D121: 0 | F121: 0 | G121: 0 | H121: 0 | I121: 0 | J121: 117
C122: 411010082 | D122: مساحة زجاج الهلال 30 سم معدن | E122: 11.86
C123: 411010081 | D123: مساحة زجاج الهلال بالإسفنجة | E123: 15.07
C124: 411310100 | D124: مساحة باركيه الهلال العجيبة | E124: 54.51
C125: 411210092 | D125: جردل الهلال بيضاوي بالعصارة | E125: 65.43
C126: 411210091 | D126: جردل إسبيدو بالعصارة | E126: 179.43
C127: 411410144 | D127: يد جردل سبيدو | E127: 54.61
C128: 411310096 | D128: موب قطن الهلال | E128: 9.9
C129: 411316999 | D129: موب قطن 100% بيد معدن 120 سم مدهون | E129: 27.5
C130: 411316984 | D130: موب قطن 100% | E130: 16.5
C131: 411310541 | D131: غيار قطنة اسبيدو | E131: 16.5
C132: 411410116 | D132: يد زان الهلال 120 سم مغلف | E132: 11.16
C133: 411410167 | D133: يد خشب لوكس الهلال مدهون ( يد غليظة 120سم) | E133: 15.55
C134: 420718107 | D134: جردل توتينز الهلال | E134: 72.61
C135: 410912202 | D135: فرشة تواليت بالقاعدة باريس | E135: 16.5
C136: 410310109 | D136: فرشة ملابس الهلال | E136: 13.2
C137: 410610098 | D137: زعافة كورة الهلال بالإريال مطبوع | E137: 31.9
C138: 411719238 | D138: منشر غسيل هلال 3 دور | E138: 438.9
C139: 411416970 | D139: يد هلال معدن 120 سم مدهون أحمر | E139: 16.5
C140: 410410054 | D140: مكنسة سوبر أجزى | E140: 19.14
C141: 420115017 | D141: زبالة كوين 8 لتر | E141: 61.63
C142: 411012503 | D142: مساحة ستايل 40سم | E142: 21.26
C143: 410710087 | D143: لمامة 4 ريشة | E143: 17.91
C144: 411012501 | D144: مساحة معدن 55سم | E144: 61.62478522
C145: 411012502 | D145: مساحة معدن 75سم | E145: 76.44437285
C146: 410114310 | D146: فرشة جندولا | E146: 15.185313
C147: 420119132 | D147: باسكت دانتيلا مدور | E147: 26.12003625
C148: 420119133 | D148: باسكت دانتيلا مربع | E148: 25.698222
C149: 420218106 | D149: سبت غسيل دانتيلا كبير 70 لتر | E149: 233.3389905
E165: 150 | F165: 9.97 | I165: =E165*F165 -> 1495.5 | J165: =F165*0.23 -> 2.2931 | K165: =I165-J165 -> 1493.2069
E166: 180 | F166: 7.72 | I166: =E166*F166 -> 1389.6 | J166: =F166*0.23 -> 1.7756 | K166: =I166-J166 -> 1387.8244
E167: 216 | F167: 24.25 | I167: 5238 | J167: 5.5775 | K167: 5232.4225
E168: 312 | F168: 11.58 | I168: 3612.96 | J168: 2.6634 | K168: 3610.2966
E169: 60 | F169: 7.72 | I169: 463.2 | J169: 1.7756 | K169: 461.4244
E170: 300 | F170: 18.33 | I170: 5499 | J170: 4.2159 | K170: 5494.7841
E171: 60 | F171: 19.25 | I171: 1155 | J171: 4.4275 | K171: 1150.5725
E172: 1200 | F172: 19.25 | I172: 23100 | J172: 4.4275 | K172: 23095.5725
I173: =SUM(I165:I172) -> 41953.26 | J173: 0 | K173: =SUM(K165:K172) -> 41926.1039
D174: =I173 -> 41953.26 | I174: =I173*0.14 -> 5873.4564 | J174: 0 | K174: =K173*0.14 -> 5869.654546
D175: =D174*0.23 -> 9649.2498 | I175: =I173+I174 -> 47826.7164 | K175: =K173+K174 -> 47795.75845
I176: =I175*0.23 -> 11000.14477
I177: =I175-I176 -> 36826.57163

Sheet MAIN
C1: مندوب
A2: التاريخ : | B2: 2022-04-05 | C2: احمد سمير
B3: =IF($A3>0,VLOOKUP($B3,'بيع الهلال'!$B$3:$L$67,3,0),0) -> 0 | C3: =IF($B3>0,VLOOKUP($B3,'بيع الهلال'!$B$3:$L$67,6,0),0) -> 0 | E3: =IF($D3>0,VLOOKUP($A3,'بيع الهلال'!$B$3:$L$67,10,0),0) -> 0 | F3: =IF($D3>0,$D3*$E3,0) -> 0 | G3: =IF($D3>0,$F3*7/100,0) -> 0 | H3: =IF($D3>0,$F3-$G3,0) -> 0
A5: الكود | B5: اسم الصنف | C5: الوحده | D5: الكميه | E5: السعر | F5: القيمه | G5: الخصم | H5: الصافي | I5: مندوب
A6: 410110062 | B6: فرشة سوبر هلين ناعم | C6: قطعة | D6: 12 | E6: 24.15 | F6: 289.8 | G6: 20.286 | H6: 269.514 | I6: احمد سمير
A7: 410110107 | B7: فرشة روما لوكس | C7: قطعة | D7: 12 | E7: 14.61 | F7: 289.8 | G7: 20.286 | H7: 269.514 | I7: احمد سمير
A8: 410110062 | B8: فرشة سوبر هلين ناعم | C8: قطعة | D8: 12 | E8: 24.15 | F8: 289.8 | G8: 20.286 | H8: 269.514 | I8: احمد سمير
A9: 410110062 | B9: فرشة سوبر هلين ناعم | C9: قطعة | D9: 12 | E9: 24.15 | F9: 289.8 | H9: 289.8 | I9: احمد سمير
A10: 410110062 | B10: فرشة سوبر هلين ناعم | C10: قطعة | D10: 12 | E10: 24.15 | F10: 0 | G10: 0 | H10: 0 | I10: احمد سمير
A11: 410110107 | B11: فرشة روما لوكس | C11: قطعة | D11: 12 | E11: 14.61 | F11: 289.8 | G11: 20.286 | H11: 269.514 | I11: احمد سمير
A12: 410110062 | B12: فرشة سوبر هلين ناعم | C12: قطعة | D12: 12 | E12: 24.15 | F12: 289.8 | G12: 20.286 | H12: 269.514 | I12: احمد سمير
A13: 410110062 | B13: فرشة سوبر هلين ناعم | C13: قطعة | D13: 12 | E13: 24.15 | F13: 289.8 | H13: 289.8 | I13: احمد سمير
A14: 410110062 | B14: فرشة سوبر هلين ناعم | C14: قطعة | D14: 12 | E14: 24.15 | F14: 0 | G14: 0 | H14: 0 | I14: احمد سمير
E15: =IF($D15>0,VLOOKUP($A15,'بيع الهلال'!$B$3:$L$67,10,0),0) -> 0 | F15: =IF($D15>0,$D15*$E15,0) -> 0 | G15: =IF($D15>0,$F15*7/100,0) -> 0 | H15: =IF($D15>0,$F15-$G15,0) -> 0
E16: =IF($D16>0,VLOOKUP($A16,'بيع الهلال'!$B$3:$L$67,10,0),0) -> 0 | F16: 0 | G16: 0 | H16: 0
E17: =IF($D17>0,VLOOKUP($A17,'بيع الهلال'!$B$3:$L$67,10,0),0) -> 0 | F17: 0 | G17: 0 | H17: 0
E18: =IF($D18>0,VLOOKUP($A18,'بيع الهلال'!$B$3:$L$67,10,0),0) -> 0 | F18: 0 | G18: 0 | H18: 0
E19: =IF($D19>0,VLOOKUP($A19,'بيع الهلال'!$B$3:$L$67,10,0),0) -> 0 | F19: 0 | G19: 0 | H19: 0
E20: =IF($D20>0,VLOOKUP($A20,'بيع الهلال'!$B$3:$L$67,10,0),0) -> 0 | F20: 0 | G20: 0 | H20: 0

Sheet SELL
A1: التاريخ | B1: الكود | C1: اسم الصنف | D1: الوحده | E1: الكميه | F1: السعر | G1: القيمه | H1: الخصم | I1: الصافي | J1: مندوب | K1: X
A2: 2022-04-03 | B2: 410110107 | C2: فرشة روما لوكس | D2: قطعة | E2: 12 | F2: 14.61 | G2: 175.32 | I2: 175.32 | J2: هشام
A3: 2022-04-03 | B3: 410110062 | C3: فرشة سوبر هلين ناعم | D3: قطعة | E3: 12 | F3: 24.15 | G3: 289.8 | I3: 289.8 | J3: هشام
A4: 2022-04-03 | B4: 410110062 | C4: =IF($B4>0,VLOOKUP($B4,'بيع الهلال'!$B$3:$L$67,3,0),0) -> فرشة سوبر هلين ناعم | D4: =IF($B4>0,VLOOKUP($B4,'بيع الهلال'!$B$3:$L$67,6,0),0) -> قطعة | E4: 12 | F4: =IF($E4>0,VLOOKUP($B4,'بيع الهلال'!$B$3:$L$67,10,0),0) -> 24.15 | G4: =IF($E4>0,$F$6*$E$6,0) -> 289.8 | H4: =IF($E4>0,$G$6*7/100,0) -> 20.286 | I4: =IF($E4>0,$G$6-$H$6,0) -> 269.514 | J4: هشام
A5: 2022-04-03 | B5: 410110107 | C5: =IF($B5>0,VLOOKUP($B5,'بيع الهلال'!$B$3:$L$67,3,0),0) -> فرشة روما لوكس | D5: =IF($B5>0,VLOOKUP($B5,'بيع الهلال'!$B$3:$L$67,6,0),0) -> قطعة | E5: 12 | F5: =IF($E5>0,VLOOKUP($B5,'بيع الهلال'!$B$3:$L$67,10,0),0) -> 14.61 | G5: =IF($E5>0,$F$6*$E$6,0) -> 289.8 | H5: =IF($E5>0,$G$6*7/100,0) -> 20.286 | I5: =IF($E5>0,$G$6-$H$6,0) -> 269.514 | J5: هشام
A6: 2022-04-03 | B6: 410110062 | C6: =IF($B6>0,VLOOKUP($B6,'بيع الهلال'!$B$3:$L$67,3,0),0) -> فرشة سوبر هلين ناعم | D6: =IF($B6>0,VLOOKUP($B6,'بيع الهلال'!$B$3:$L$67,6,0),0) -> قطعة | E6: 12 | F6: =IF($E6>0,VLOOKUP($B6,'بيع الهلال'!$B$3:$L$67,10,0),0) -> 24.15 | G6: =IF($E6>0,$F$6*$E$6,0) -> 289.8 | H6: =IF($E6>0,$G$6*7/100,0) -> 20.286 | I6: =IF($E6>0,$G$6-$H$6,0) -> 269.514 | J6: هشام
A7: 2022-04-03 | B7: 410110107 | C7: فرشة روما لوكس | D7: قطعة | E7: 12 | F7: 14.61 | G7: 289.8 | H7: 20.286 | I7: 269.514 | J7: عمرو
A8: 2022-04-03 | B8: 410110062 | C8: فرشة سوبر هلين ناعم | D8: قطعة | E8: 12 | F8: 24.15 | G8: 289.8 | H8: 20.286 | I8: 269.514 | J8: عمرو
A9: 2022-04-03 | B9: 410110062 | C9: فرشة سوبر هلين ناعم | D9: قطعة | E9: 12 | F9: 24.15 | G9: 289.8 | I9: 289.8 | J9: عمرو
A10: 2022-04-03 | B10: 410110062 | C10: فرشة سوبر هلين ناعم | D10: قطعة | E10: 12 | F10: 24.15 | G10: 289.8 | H10: 20.286 | I10: 269.514 | J10: عمرو
A11: 2022-04-03 | B11: 410110107 | C11: فرشة روما لوكس | D11: قطعة | E11: 12 | F11: 14.61 | G11: 289.8 | H11: 20.286 | I11: 269.514 | J11: عمرو
A12: 2022-04-05 | B12: 410110107 | C12: فرشة روما لوكس | D12: قطعة | E12: 12 | F12: 14.61 | G12: 289.8 | H12: 20.286 | I12: 269.514 | J12: عمرو | K12: 9
A13: 2022-04-05 | B13: 410110062 | C13: فرشة سوبر هلين ناعم | D13: قطعة | E13: 12 | F13: 24.15 | G13: 289.8 | H13: 20.286 | I13: 269.514 | J13: هشام | K13: 10
A14: 2022-04-05 | B14: 410110107 | C14: فرشة روما لوكس | D14: قطعة | E14: 12 | F14: 14.61 | G14: 289.8 | H14: 20.286 | I14: 269.514 | J14: هشام | K14: 11
A15: 2022-04-05 | B15: 410110062 | C15: فرشة سوبر هلين ناعم | D15: قطعة | E15: 12 | F15: 24.15 | G15: 289.8 | H15: 20.286 | I15: 269.514 | J15: هشام | K15: 12
A16: 2022-04-07 | B16: 410110062 | C16: فرشة سوبر هلين ناعم | D16: قطعة | E16: 12 | F16: 24.15 | G16: 289.8 | I16: 289.8 | J16: هشام | K16: 13
A17: 2022-04-07 | B17: 410110062 | C17: فرشة سوبر هلين ناعم | D17: قطعة | E17: 12 | F17: 24.15 | G17: 0 | H17: 0 | I17: 0 | J17: عمرو | K17: 14
A18: 2022-04-07 | B18: 410110107 | C18: فرشة روما لوكس | D18: قطعة | E18: 12 | F18: 14.61 | G18: 289.8 | H18: 20.286 | I18: 269.514 | J18: عمرو | K18: 15
A19: 2022-04-07 | B19: 410110062 | C19: فرشة سوبر هلين ناعم | D19: قطعة | E19: 12 | F19: 24.15 | G19: 289.8 | H19: 20.286 | I19: 269.514 | J19: عمرو | K19: 16
A20: 2022-04-07 | B20: 410110062 | C20: فرشة سوبر هلين ناعم | D20: قطعة | E20: 12 | F20: 24.15 | G20: 289.8 | I20: 289.8 | J20: عمرو | K20: 17
A21: 2022-04-07 | B21: 410110062 | C21: فرشة سوبر هلين ناعم | D21: قطعة | E21: 12 | F21: 24.15 | G21: 0 | H21: 0 | I21: 0 | J21: عمرو | K21: 18
A22: 2022-04-07 | B22: 410110107 | C22: فرشة روما لوكس | D22: قطعة | E22: 12 | F22: 14.61 | G22: 289.8 | H22: 20.286 | I22: 269.514 | J22: احمد سمير | K22: 19
A23: 2022-04-05 | B23: 410110062 | C23: فرشة سوبر هلين ناعم | D23: قطعة | E23: 12 | F23: 24.15 | G23: 289.8 | H23: 20.286 | I23: 269.514 | J23: احمد سمير | K23: 20
A24: 2022-04-05 | B24: 410110107 | C24: فرشة روما لوكس | D24: قطعة | E24: 12 | F24: 14.61 | G24: 289.8 | H24: 20.286 | I24: 269.514 | J24: احمد سمير | K24: 21
A25: 2022-04-05 | B25: 410110062 | C25: فرشة سوبر هلين ناعم | D25: قطعة | E25: 12 | F25: 24.15 | G25: 289.8 | H25: 20.286 | I25: 269.514 | J25: احمد سمير | K25: 22
A26: 2022-04-05 | B26: 410110062 | C26: فرشة سوبر هلين ناعم | D26: قطعة | E26: 12 | F26: 24.15 | G26: 289.8 | I26: 289.8 | J26: احمد سمير | K26: 23
A27: 2022-04-05 | B27: 410110062 | C27: فرشة سوبر هلين ناعم | D27: قطعة | E27: 12 | F27: 24.15 | G27: 0 | H27: 0 | I27: 0 | J27: احمد سمير | K27: 24
A28: 2022-04-05 | B28: 410110107 | C28: فرشة روما لوكس | D28: قطعة | E28: 12 | F28: 14.61 | G28: 289.8 | H28: 20.286 | I28: 269.514 | J28: احمد سمير | K28: 25
A29: 2022-04-05 | B29: 410110062 | C29: فرشة سوبر هلين ناعم | D29: قطعة | E29: 12 | F29: 24.15 | G29: 289.8 | H29: 20.286 | I29: 269.514 | J29: احمد سمير | K29: 26
A30: 2022-04-05 | B30: 410110062 | C30: فرشة سوبر هلين ناعم | D30: قطعة | E30: 12 | F30: 24.15 | G30: 289.8 | I30: 289.8 | J30: احمد سمير | K30: 27
A31: 2022-04-05 | B31: 410110062 | C31: فرشة سوبر هلين ناعم | D31: قطعة | E31: 12 | F31: 24.15 | G31: 0 | H31: 0 | I31: 0 | J31: احمد سمير | K31: 28
C32: =IF($B32>0,VLOOKUP($B32,'بيع الهلال'!$B$3:$L$67,3,0),0) -> 0 | D32: =IF($B32>0,VLOOKUP($B32,'بيع الهلال'!$B$3:$L$67,6,0),0) -> 0 | F32: =IF($E32>0,VLOOKUP($B32,'بيع الهلال'!$B$3:$L$67,10,0),0) -> 0 | G32: 0 | H32: 0 | I32: 0
C33: =IF($B33>0,VLOOKUP($B33,'بيع الهلال'!$B$3:$L$67,3,0),0) -> 0 | D33: =IF($B33>0,VLOOKUP($B33,'بيع الهلال'!$B$3:$L$67,6,0),0) -> 0 | F33: =IF($E33>0,VLOOKUP($B33,'بيع الهلال'!$B$3:$L$67,10,0),0) -> 0 | G33: 0 | H33: 0 | I33: 0
C34: =IF($B34>0,VLOOKUP($B34,'بيع الهلال'!$B$3:$L$67,3,0),0) -> 0 | D34: =IF($B34>0,VLOOKUP($B34,'بيع الهلال'!$B$3:$L$67,6,0),0) -> 0 | F34: =IF($E34>0,VLOOKUP($B34,'بيع الهلال'!$B$3:$L$67,10,0),0) -> 0 | G34: 0 | H34: 0 | I34: 0
C35: =IF($B35>0,VLOOKUP($B35,'بيع الهلال'!$B$3:$L$67,3,0),0) -> 0 | D35: =IF($B35>0,VLOOKUP($B35,'بيع الهلال'!$B$3:$L$67,6,0),0) -> 0 | F35: =IF($E35>0,VLOOKUP($B35,'بيع الهلال'!$B$3:$L$67,10,0),0) -> 0 | G35: 0 | H35: 0 | I35: 0
C36: =IF($B36>0,VLOOKUP($B36,'بيع الهلال'!$B$3:$L$67,3,0),0) -> 0 | D36: =IF($B36>0,VLOOKUP($B36,'بيع الهلال'!$B$3:$L$67,6,0),0) -> 0 | F36: =IF($E36>0,VLOOKUP($B36,'بيع الهلال'!$B$3:$L$67,10,0),0) -> 0 | G36: 0 | H36: 0 | I36: 0
C37: =IF($B37>0,VLOOKUP($B37,'بيع الهلال'!$B$3:$L$67,3,0),0) -> 0 | D37: =IF($B37>0,VLOOKUP($B37,'بيع الهلال'!$B$3:$L$67,6,0),0) -> 0 | F37: =IF($E37>0,VLOOKUP($B37,'بيع الهلال'!$B$3:$L$67,10,0),0) -> 0 | G37: 0 | H37: 0 | I37: 0
C38: =IF($B38>0,VLOOKUP($B38,'بيع الهلال'!$B$3:$L$67,3,0),0) -> 0 | D38: =IF($B38>0,VLOOKUP($B38,'بيع الهلال'!$B$3:$L$67,6,0),0) -> 0 | F38: =IF($E38>0,VLOOKUP($B38,'بيع الهلال'!$B$3:$L$67,10,0),0) -> 0 | G38: 0 | H38: 0 | I38: 0
C39: =IF($B39>0,VLOOKUP($B39,'بيع الهلال'!$B$3:$L$67,3,0),0) -> 0 | D39: =IF($B39>0,VLOOKUP($B39,'بيع الهلال'!$B$3:$L$67,6,0),0) -> 0 | F39: =IF($E39>0,VLOOKUP($B39,'بيع الهلال'!$B$3:$L$67,10,0),0) -> 0 | G39: 0 | H39: 0 | I39: 0
C40: =IF($B40>0,VLOOKUP($B40,'بيع الهلال'!$B$3:$L$67,3,0),0) -> 0 | D40: =IF($B40>0,VLOOKUP($B40,'بيع الهلال'!$B$3:$L$67,6,0),0) -> 0 | F40: =IF($E40>0,VLOOKUP($B40,'بيع الهلال'!$B$3:$L$67,10,0),0) -> 0 | G40: 0 | H40: 0 | I40: 0
C41: =IF($B41>0,VLOOKUP($B41,'بيع الهلال'!$B$3:$L$67,3,0),0) -> 0 | D41: =IF($B41>0,VLOOKUP($B41,'بيع الهلال'!$B$3:$L$67,6,0),0) -> 0 | F41: =IF($E41>0,VLOOKUP($B41,'بيع الهلال'!$B$3:$L$67,10,0),0) -> 0 | G41: 0 | H41: 0 | I41: 0
C42: =IF($B42>0,VLOOKUP($B42,'بيع الهلال'!$B$3:$L$67,3,0),0) -> 0 | D42: =IF($B42>0,VLOOKUP($B42,'بيع الهلال'!$B$3:$L$67,6,0),0) -> 0 | F42: =IF($E42>0,VLOOKUP($B42,'بيع الهلال'!$B$3:$L$67,10,0),0) -> 0 | G42: 0 | H42: 0 | I42: 0
C43: =IF($B43>0,VLOOKUP($B43,'بيع الهلال'!$B$3:$L$67,3,0),0) -> 0 | D43: =IF($B43>0,VLOOKUP($B43,'بيع الهلال'!$B$3:$L$67,6,0),0) -> 0 | F43: =IF($E43>0,VLOOKUP($B43,'بيع الهلال'!$B$3:$L$67,10,0),0) -> 0 | G43: 0 | H43: 0 | I43: 0
C44: =IF($B44>0,VLOOKUP($B44,'بيع الهلال'!$B$3:$L$67,3,0),0) -> 0 | D44: =IF($B44>0,VLOOKUP($B44,'بيع الهلال'!$B$3:$L$67,6,0),0) -> 0 | F44: =IF($E44>0,VLOOKUP($B44,'بيع الهلال'!$B$3:$L$67,10,0),0) -> 0 | G44: 0 | H44: 0 | I44: 0
C45: =IF($B45>0,VLOOKUP($B45,'بيع الهلال'!$B$3:$L$67,3,0),0) -> 0 | D45: =IF($B45>0,VLOOKUP($B45,'بيع الهلال'!$B$3:$L$67,6,0),0) -> 0 | F45: =IF($E45>0,VLOOKUP($B45,'بيع الهلال'!$B$3:$L$67,10,0),0) -> 0 | G45: 0 | H45: 0 | I45: 0
C46: =IF($B46>0,VLOOKUP($B46,'بيع الهلال'!$B$3:$L$67,3,0),0) -> 0 | D46: =IF($B46>0,VLOOKUP($B46,'بيع الهلال'!$B$3:$L$67,6,0),0) -> 0 | F46: =IF($E46>0,VLOOKUP($B46,'بيع الهلال'!$B$3:$L$67,10,0),0) -> 0 | G46: 0 | H46: 0 | I46: 0
C47: =IF($B47>0,VLOOKUP($B47,'بيع الهلال'!$B$3:$L$67,3,0),0) -> 0 | D47: =IF($B47>0,VLOOKUP($B47,'بيع الهلال'!$B$3:$L$67,6,0),0) -> 0 | F47: =IF($E47>0,VLOOKUP($B47,'بيع الهلال'!$B$3:$L$67,10,0),0) -> 0 | G47: 0 | H47: 0 | I47: 0
